Workbook

Sheet 確認事項
A1: NO. | B1: 確認事項 | C1: 回答 | D1: CLOSE

Sheet 変更履歴
A1: MMO観測計画作成ツール 変更履歴
A2: 日付 | B2: Ver | C2: 変更者 | D2: 変更内容
A3: 2021-08-06 | B3: 1 | C3: 山下 | D3: -
A4: 2021-08-09 | B4: 2 | C4: arare | D4: コマンド出力のmain end部分を出力するように修正した ListにMSA_HV_ON_VFB1、MSA_HV_ON_VFB2追加 Obs_sequence XOR Time行追記 コマンドの開始終了時間をOBS時間に変更
A5: 2021-08-17 | B5: 3 | C5: arare | D5: WOLの時間をG列から取得するように変更
A6: 2021-08-25 | B6: 4 | C6: arare | D6: COMMENTにmainstart,endのXDOR,XOR用追記
A7: 2021-09-27 | B7: 5 | C7: arare | D7: ＃refの対応 obserbation Aから昇順につける
A8: 2021-10-19 | B8: 6 | C8: arare | D8: ListにMSAHV追記
A9: 2021-10-21 | B9: 7 | C9: arare | D9: Listを最新にした
A10: 2022-03-08 | B10: 8 | C10: arare | D10: Listを最新にした、XDOR用コメントはプログラム改修により使用なし

Sheet 実行
F8: 【操作】
A9: C番号 | B9: 990 | F9: 「実行」シートの「観測作成」を押下。
A10: M番号 | B10: 631204 | F10: →「START」、「LOOP」、「END」を「obs_sequence」に貼り付けます。
F11: 「実行」シートの「時刻反映」を押下。
F12: →WOLの時間と関数エラーとなっているセルを修正します。
F13: 【注意点】
F14: 「START」、「LOOP」、「END」の"cmd count"からシート内に何行あるかを取得しているので、ここは空白がないように"0”を入力してください。
F15: もし空白があった場合、コピー範囲が小さくなってしまいます。
F16: ”WOL”シートの4行目以下は、実施するWOLのみを記載すること。 (4行目以下に、期間開始日時と終了日時の記載は不要です。)

Sheet チェック表 (hidden)
B2: コマンド作成時注意項目
B3: NO. | C3: 項目 | D3: チェック
B4: 1 | C4: 観測期間開始時に「dcsm-EF_BUS_MONI_ON」手順が入っていることを確認する。 ただし、前回の観測終了時に「dcsm-EF_BUS_MONI_OFF」を実行していない場合は確認不要。 | D4: □
B5: 2 | C5: 観測期間開始日に、観測する機器の”ON”手順が入っていることを確認する。 ただし、PWI、MGF、MAST、WPTを"ON"にする場合は、PWI、MGF、MAST、WPTよりも先にPMEが"ON"となっていること。 ※クルーズ観測中は、MEA1,HEPE,MGFのみ”ON” | D5: □
B6: 3 | C6: TLM MODEが観測前に「５」 観測終了後は「１０」 となっていることを確認する | D6: □
B7: 4 | C7: 観測時間が”86400”を超えるていないか確認する。 超えていた場合は、main計画作成時に途中ダミーコマンドを挿入すること
B8: 5 | C8: WOLの開始時刻が正しいことを確認する | D8: □
B9: 6 | C9: WOLの時間を確認 HV OFFになっていることを確認する ↓ クルーズ観測を行っている機器(HEPE、ENA、MIA、MEA、MSAのみ) フライバイを行っている機器(MSA,PWI,MGF,MEA,ENA,MIA,HEPE,MDM) | D9: □
B10: 7 | C10: WOL終了時刻＋10以降にのHVがONになっていることを確認する。 クルーズ観測を行っている機器(HEPE、ENA、MIA、MEA、MSAのみ) フライバイを行っている機器(MSA,PWI,MGF,MEA,ENA,MIA,HEPE,MDM) | D10: □
B11: 8 | C11: 観測期間最終日に、観測を行った機器の”OFF”手順が入っていることを確認する。 ただし、PWI,MGF,MAST,WPT-OFF手順の後にPME-OFF手順が入っていることを確認する。 | D11: □
B12: 9 | C12: MDP_POWEROFFのあとにdcsm-MC_ENA_MDPが入っていることを確認する。 | D12: □
B13: 10 | C13: CELのMONI ONは長時間(1h以上の場合は、山下さんと要相談)しないこと BUSにはCELのみのもあるので注意 dcsm-BUS_CEL_MONI_ON dcsm-BUS_CEL_MONI_OFF | D13: □
B14: 11 | C14: MEA1の SCAN ON は dcsm-EF_MEA1_ON_SW.cpsに入っているので 順番は MDP ONして dcsm-EF_MEA1_ON_SW.cps dcsm-EF_MEA1_HV_ON.cps dcsm-EF_MEA1_HV_OFF.cps dcsm-EF_MEA1_HV_ON.cps dcsm-EF_MEA1_HV_SCAN_OFF.cps dcsm-EF_MEA1_OFF.cps MDP OFF dcsm-EF_MEA_ON_SW.cps dcsm-EF_MEA_HV_ON.cps dcsm-EF_MEA_HV_OFF.cps dcsm-EF_MEA_HV_ON.cps dcsm-EF_MEA_HV_SCAN_OFF.cps dcsm-EF_MEA_OFF.cps になる SCAN OFFにすると データが出てこない HV OFF->ON時は注意する | D14: □
B15: 13 | C15: 2021/6/25以降 dcsm-EF_MSA_ON_C が最新 dcsm-EF_MSA_ONは使用しない | D15: □
B16: 14 | C16: 2021/6/25以降 dcsm-CRCO_MIA_CHECK_C が最新 dcsm-CRCO_MIA_CHECKは使用しない（クルーズチェックアウトの時） | D16: □
B17: 15 | C17: 2021/6/25以降 dcsm-CRCO_MSA_CHECK_C が最新 dcsm-CRCO_MSA_CHECKは使用しない（クルーズチェックアウトの時） | D17: □
B18: 16 | C18: フライバイ時、MIAのHV_ON時間帯によって違うので必ず確認する MIA_HV_ON_RC MIA_HV_ON_SW_RC MIA_HV_ON_MAG_RC | D18: □
B19: 17 | C19: Excelの時間を確認する 時間通りになっているか | D19: □

Sheet START
A1: Start | B1: End | C1: Start | D1: End | E1: Event | F1: Activity | G1: Procedure | H1: Duration (sec) | L1: cmd count | N1: cmd count
C2: =#REF! ->  | D2: =C2+H2/3600/24 ->  | F2: BUS_ON | G2: MDP_ON_D | H2: =VLOOKUP(G2,List!B:C,2,0) -> 509 | K2: =VLOOKUP(G2,List!B:E,4,0) -> dcsm-EF_MDP_ON | L2: =VLOOKUP(G2,List!B:G,6,0) -> 11 | M2: =C2-317/3600/24 ->  | N2: =+"0000 CALL "&K2&" -Run" -> 0000 CALL dcsm-EF_MDP_ON -Run | P2: CALL | Q2: dcsm-EF_BUS_MONI_ON | U2: =+IF(Q2=K2,"","x") -> x
C3: =D2 ->  | D3: =C3+H3/3600/24 ->  | F3: MDP ON | G3: MDP_CRUISE_SET | H3: =VLOOKUP(G3,List!B:C,2,0) -> 42 | K3: =VLOOKUP(G3,List!B:E,4,0) -> dcsm-EF_MDP_CRUISE_SET | L3: =VLOOKUP(G3,List!B:G,6,0) -> 2 | N3: 0000 CALL dcsm-EF_MDP_CRUISE_SET -Run | P3: CALL | Q3: dcsm-EF_MDP_ON | U3: =+IF(Q3=K3,"","x") -> x
C4: =D3 ->  | D4: =C4+H4/3600/24 ->  | G4: TLM_MODE_10 | H4: =VLOOKUP(G4,List!B:C,2,0) -> 42 | K4: =VLOOKUP(G4,List!B:E,4,0) -> dcsm-EF_BUS_TLM_MODE_10 | L4: =VLOOKUP(G4,List!B:G,6,0) -> 2 | N4: 0000 CALL dcsm-EF_BUS_TLM_MODE_10 -Run
F5: TLM mode change (MODE_10) | G5: MEA1_ON_SETUP_SW | H5: =VLOOKUP(G5,List!B:C,2,0) -> 292 | K5: =VLOOKUP(G5,List!B:E,4,0) -> dcsm-EF_MEA1_ON_SW | L5: =VLOOKUP(G5,List!B:G,6,0) -> 12 | N5: 0000 CALL dcsm-EF_MEA1_ON_SW -Run
D6: =C6+H6/3600/24 ->  | F6: SI ON | G6: HEP_ON_SETUP | H6: =VLOOKUP(G6,List!B:C,2,0) -> 1230 | K6: =VLOOKUP(G6,List!B:E,4,0) -> dcsm-EF_HEP_ON_START_for_TL | L6: =VLOOKUP(G6,List!B:G,6,0) -> 34 | N6: 0000 CALL dcsm-EF_HEP_ON_START_for_TL -Run
G7: PME_ON | H7: =VLOOKUP(G7,List!B:C,2,0) -> 80 | K7: =VLOOKUP(G7,List!B:E,4,0) -> dcsm-EF_PME_ON | L7: =VLOOKUP(G7,List!B:G,6,0) -> 2 | N7: 0000 CALL dcsm-EF_PME_ON -Run | P7: CALL | Q7: dcsm-EF_MDP_CRUISE_SET | U7: x
G8: MGF_ON_SETUP | H8: =VLOOKUP(G8,List!B:C,2,0) -> 14 | K8: =VLOOKUP(G8,List!B:E,4,0) -> dcsm-EF_MGF_ON | L8: =VLOOKUP(G8,List!B:G,6,0) -> 3 | N8: 0000 CALL dcsm-EF_MGF_ON -Run | P8: CALL | Q8: dcsm-EF_BUS_TLM_MODE_10 | U8: x

Sheet END
A1: Start | B1: End | C1: Start | D1: End | E1: Event | F1: Activity | G1: Procedure | H1: Duration (sec) | L1: cmd count | N1: cmd count
C2: =D2-H2/3600/24 ->  | D2: =C3 ->  | F2: SI OFF | G2: HEP_OFF | H2: =VLOOKUP(G2,List!B:C,2,0) -> 70 | K2: =VLOOKUP(G2,List!B:E,4,0) -> dcsm-EF_HEPE_OFF_STOP | L2: =VLOOKUP(G2,List!B:G,6,0) -> 4 | M2: =C2-317/3600/24 ->  | N2: =+"0000 CALL "&K2&" -Run" -> 0000 CALL dcsm-EF_HEPE_OFF_STOP -Run | P2: CALL | Q2: dcsm-EF_HEPE_OFF_STOP | U2: =+IF(Q2=K2,"","x") -> 
G3: MEA1_OFF | H3: =VLOOKUP(G3,List!B:C,2,0) -> 160 | K3: =VLOOKUP(G3,List!B:E,4,0) -> dcsm-EF_MEA1_OFF | L3: =VLOOKUP(G3,List!B:G,6,0) -> 4 | N3: =+"0000 CALL "&K3&" -Run" -> 0000 CALL dcsm-EF_MEA1_OFF -Run | P3: CALL | Q3: dcsm-EF_MEA1_OFF
G4: MGF_OFF | H4: =VLOOKUP(G4,List!B:C,2,0) -> 8 | K4: =VLOOKUP(G4,List!B:E,4,0) -> dcsm-EF_MGF_OFF | L4: =VLOOKUP(G4,List!B:G,6,0) -> 1 | N4: 0000 CALL dcsm-EF_MGF_OFF -Run | P4: CALL | Q4: dcsm-EF_MGF_OFF
D5: =#REF! ->  | G5: PME_OFF | H5: =VLOOKUP(G5,List!B:C,2,0) -> 40 | K5: =VLOOKUP(G5,List!B:E,4,0) -> dcsm-EF_PME_OFF | L5: =VLOOKUP(G5,List!B:G,6,0) -> 1 | N5: 0000 CALL dcsm-EF_PME_OFF -Run | P5: CALL | Q5: dcsm-EF_PME_OFF
C6: =#REF! ->  | D6: =C6+H6/3600/24 ->  | E6: =#REF! ->  | G6: END | H6: 1200 | K6: =VLOOKUP(G6,List!B:E,4,0) ->  | L6: 0

Sheet LOOP
A1: Start | B1: End | C1: Start | D1: End | E1: Event | F1: Activity | G1: Procedure | H1: Duration (sec) | L1: cmd count | N1: cmd count
C2: =#REF! ->  | D2: =C2+H2/3600/24 ->  | F2: SI HV ON | G2: MEA1_HV_ON | H2: =VLOOKUP(G2,List!B:C,2,0) -> 1702 | K2: =VLOOKUP(G2,List!B:E,4,0) -> dcsm-EF_MEA1_HV_ON | L2: =VLOOKUP(G2,List!B:G,6,0) -> 27 | M2: =C2-317/3600/24 ->  | N2: =+"0000 CALL "&K2&" -Run" -> 0000 CALL dcsm-EF_MEA1_HV_ON -Run | P2: CALL | Q2: dcsm-EF_MEA1_HV_ON | U2: =+IF(Q2=K2,"","x") -> 
C3: =D2 ->  | G3: HEP_HV_ON | H3: =VLOOKUP(G3,List!B:C,2,0) -> 270 | K3: =VLOOKUP(G3,List!B:E,4,0) -> dcsm-EF_HEPE_HV_ON_OBS_START | L3: =VLOOKUP(G3,List!B:G,6,0) -> 6 | N3: =+"0000 CALL "&K3&" -Run" -> 0000 CALL dcsm-EF_HEPE_HV_ON_OBS_START -Run | P3: CALL | Q3: dcsm-EF_HEPE_HV_ON_OBS_START
F4: TLM mode change (MODE_5) | G4: TLM_MODE_5 | H4: =VLOOKUP(G4,List!B:C,2,0) -> 42 | K4: =VLOOKUP(G4,List!B:E,4,0) -> dcsm-EF_BUS_TLM_MODE_5 | L4: =VLOOKUP(G4,List!B:G,6,0) -> 2 | N4: 0000 CALL dcsm-EF_BUS_TLM_MODE_5 -Run | P4: CALL | Q4: dcsm-EF_BUS_TLM_MODE_5
D5: =C6 ->  | E5: Observation I | H5: =(D5-C5)*3600*24 ->  | I5: =H5/3600 ->  | L5: 0 | N5: ="0000 WAIT_SEC "&TEXT(H5,"#0") ->  | P5: WAIT_SEC | Q5: 26900 | U5: x
C6: =D6-H6/3600/24 ->  | D6: =C7 ->  | F6: TLM mode change (MODE_10) | G6: TLM_MODE_10 | H6: =VLOOKUP(G6,List!B:C,2,0) -> 42 | K6: =VLOOKUP(G6,List!B:E,4,0) -> dcsm-EF_BUS_TLM_MODE_10 | L6: =VLOOKUP(G6,List!B:G,6,0) -> 2 | N6: =+"0000 CALL "&K6&" -Run" -> 0000 CALL dcsm-EF_BUS_TLM_MODE_10 -Run | P6: CALL | Q6: dcsm-EF_BUS_TLM_MODE_10
C7: =D7-H7/3600/24 ->  | D7: =C8 ->  | F7: SI HV OFF | G7: HEP_HV_OFF | H7: =VLOOKUP(G7,List!B:C,2,0) -> 190 | K7: =VLOOKUP(G7,List!B:E,4,0) -> dcsm-EF_HEPE_HV_OFF_OBS_OFF | L7: =VLOOKUP(G7,List!B:G,6,0) -> 5 | N7: 0000 CALL dcsm-EF_HEPE_HV_OFF_OBS_OFF -Run | P7: CALL | Q7: dcsm-EF_HEPE_HV_OFF_OBS_OFF
C8: =D8-H8/3600/24 ->  | D8: =C9 ->  | G8: MEA1_HV_OFF | H8: =VLOOKUP(G8,List!B:C,2,0) -> 182 | K8: =VLOOKUP(G8,List!B:E,4,0) -> dcsm-EF_MEA1_HV_OFF | L8: =VLOOKUP(G8,List!B:G,6,0) -> 10 | N8: 0000 CALL dcsm-EF_MEA1_HV_OFF -Run | P8: CALL | Q8: dcsm-EF_MEA1_HV_OFF
C9: =#REF! ->  | D9: =C9+H9/3600/24 ->  | E9: WOL | G9: =(#REF!-D8)*24*3600 ->  | H9: 1200 | K9: =VLOOKUP(G9,#REF!,4,0) ->  | L9: 0 | N9: ="0000 WAIT_SEC "&TEXT(G9,"#0") ->  | P9: WAIT_SEC | Q9: 1800

Sheet COMMENT
A1: activity | B1: Comment
A2: main_start | B2: #!HEAD: main2-CROUSE_OBS6_XDOR_001_M63 2021-07-01 01:18:36 478 45 MMO MAIN2 // Earth Fly-by 0001 . # LET @ONERR=NEXT 0002 . # ========================================================================== 0003 # <startTime>2021-07-06T08:00:00Z</startTime> 0004 # <stopTime>2021-07-15T10:00:00Z</stopTime> 0005 # << XDOR:XDOR_BJXR_C%%%_CRCO_M&&&&&&_00001.BC >> 連続送信***** 0006 # << XOR:XOR__BJXR_C%%%_CRCO_M&&&&&&_00001.BC >> ***** 0007 # ========================================================================== 0008 # ========================================================================== 0009 . # EXEC_AT 2021-07-06 08:00:00 0010 # ◆◇◆◇◆◇◆◇◆◇◆◇◆◇◆◇◆◇◆◇◆◇◆◇◆◇◆◇◆◇◆◇◆◇◆◇◆ 0015 # ========================================================================== 0016 # 0. MMO MOSIF Heater & Switch to Standby Mode 0017 # ========================================================================== 0018 #
A3: main_end | B3: 0122 # ========================================================================== 0123 # 99. MMO Dormant Mode 0124 # ========================================================================== 0125 WAIT_SEC 240 0126 # 0127 # MMO Set HK rate to 1 second (3sec) 0128 # <forMPO>AJXF004A</forMPO> 0129 WAIT_SEC 120 0130 # 0131 # MMO Switch to Dormant Mode (70sec) 0132 # <forMPO>AJXF002A</forMPO> 0133 WAIT_SEC 300 0134 # 0135 # Return MOSIF heater setting (14sec) 0136 # <forMPO>AJXF017B</forMPO> 0291 #############################################################################
A4: OBS | B4: 0068 # ========================================================================== 0069 # @@. Observation \\ 0070 # ========================================================================== 0071 #
A5: WOL | B5: 0217 # ========================================================================== 0218 # @@. WOL # $$ 0219 # ========================================================================== 0220 #
A6: BUS_ON | B6: 0016 # ========================================================================== 0017 # @@. BUS ON 0018 # ========================================================================== 0019 #
A7: MDP ON | B7: 0020 # ========================================================================== 0021 # @@. MDP ON 0022 # ========================================================================== 0023 #
A8: SI Check
A9: MDP OFF | B9: 0274 # ========================================================================== 0275 # @@. MDP OFF 0276 # ========================================================================== 0277 #
A10: BUS OFF | B10: 0285 # ========================================================================== 0286 # @@. BUS MONI OFF 0287 # ========================================================================== 0288 #
A11: SI ON | B11: 0034 # ========================================================================== 0035 # @@. PI POWER ON 0036 # ========================================================================== 0037 #
A12: SI HV ON | B12: 0049 # ========================================================================== 0050 # @@. PI HV ON 0051 # ========================================================================== 0052 #
A13: TLM mode change (MODE_5) | B13: 0059 # ========================================================================== 0060 # @@. TLM MODE 5 (Mission: 7kbps, without user HK) 0061 # ========================================================================== 0062 #
A14: TLM mode change (MODE_10) | B14: 0028 # ========================================================================== 0029 # @@. TLM MODE 10 (Mission: 4kbps, with user HK) 0030 # ========================================================================== 0031 #
A15: SI HV OFF | B15: 0207 # ========================================================================== 0208 # @@. PI HV OFF 0209 # ========================================================================== 0210 #
A16: SI OFF | B16: 0259 # ========================================================================== 0260 # @@. PI Power OFF 0261 # ========================================================================== 0262 #
A17: MSA SOFT RESET
A18: MACRO COMMAND ENA | B18: 0280 # ========================================================================== 0281 # @@. MACRO ENA 0282 # ========================================================================== 0283 #
A19: CrouseCheckOut
A21: main_start(XDOR) | B21: #!HEAD: main2-CROUSE_OBS6_XDOR_001_M63 2021-07-01 01:18:36 478 45 MMO MAIN2 // Earth Fly-by 0001 . # LET @ONERR=NEXT 0002 . # ========================================================================== 0003 # <startTime>2021-07-06T08:00:00Z</startTime> 0004 # <stopTime>2021-07-15T10:00:00Z</stopTime> 0005 # << XDOR:XDOR_BJXR_C%%%_CRCO_M&&&&&&_00001.BC >> 連続送信***** 0006 # << XOR:XOR__BJXR_C%%%_CRCO_M&&&&&&_00001.BC >> ***** 0007 # ========================================================================== 0008 # ========================================================================== 0009 . # EXEC_AT 2021-07-06 08:00:00 0010 # ◆◇◆◇◆◇◆◇◆◇◆◇◆◇◆◇◆◇◆◇◆◇◆◇◆◇◆◇◆◇◆◇◆◇◆◇◆ 0015 # ========================================================================== 0016 # 0. MMO MOSIF Heater & Switch to Standby Mode 0017 # ========================================================================== 0018 # 0019 # Change MOSIF Heater Setting (14sec) 0020 # <forMPO>AJXF017A</forMPO> 0021 WAIT_SEC 42586 0022 # 0023 # MMO Switch to Standby Mode (main) (300sec) 0024 # <forMPO>AJXF001A</forMPO> 0025 WAIT_SEC 60 0026 # 0027 # MMO Set HK rate to 64 second (3sec) 0028 # <forMPO>AJXF005A</forMPO> 0029 WAIT_SEC 237 0030 # | C21: 仕様変更により使用しない
A22: main_start(XOR) | B22: #!HEAD: main2-CROUSE_OBS6_XDOR_001_M63 2021-07-01 01:18:36 478 45 MMO MAIN2 // Earth Fly-by 0001 . # LET @ONERR=NEXT 0002 . # ========================================================================== 0003 # <startTime>2021-07-06T08:00:00Z</startTime> 0004 # <stopTime>2021-07-15T10:00:00Z</stopTime> 0005 # << XDOR:XDOR_BJXR_C%%%_CRCO_M&&&&&&_00001.BC >> 連続送信***** 0006 # << XOR:XOR__BJXR_C%%%_CRCO_M&&&&&&_00001.BC >> ***** 0007 # ========================================================================== 0008 # ========================================================================== 0009 . # EXEC_AT 2021-07-06 08:00:00 0010 # ◆◇◆◇◆◇◆◇◆◇◆◇◆◇◆◇◆◇◆◇◆◇◆◇◆◇◆◇◆◇◆◇◆◇◆◇◆ 0015 # ========================================================================== 0016 # 0. MMO MOSIF Heater & Switch to Standby Mode 0017 # ========================================================================== 0018 # 0019 # Change MOSIF Heater Setting (14sec) 0020 # <forMPO>AJXF017A</forMPO> 0021 WAIT_SEC 42600 0022 # 0023 # MMO Switch to Standby Mode (main) (300sec) 0024 # <forMPO>AJXF001A</forMPO> 0025 WAIT_SEC 360 0026 # 0027 # MMO Set HK rate to 64 second (3sec) 0028 # <forMPO>AJXF005A</forMPO> 0029 WAIT_SEC 240 0030 #
A23: main_end(XDOR) | B23: 0122 # ========================================================================== 0123 # 99. MMO Dormant Mode 0124 # ========================================================================== 0125 WAIT_SEC 240 0126 # 0127 # MMO Set HK rate to 1 second (3sec) 0128 # <forMPO>AJXF004A</forMPO> 0129 WAIT_SEC 117 0130 # 0131 # MMO Switch to Dormant Mode (70sec) 0132 # <forMPO>AJXF002A</forMPO> 0133 WAIT_SEC 230 0134 # 0135 # Return MOSIF heater setting (14sec) 0136 # <forMPO>AJXF017B</forMPO> 0291 #############################################################################
A24: main_end(XOR) | B24: 0122 # ========================================================================== 0123 # 99. MMO Dormant Mode 0124 # ========================================================================== 0125 WAIT_SEC 240 0126 # 0127 # MMO Set HK rate to 1 second (3sec) 0128 # <forMPO>AJXF004A</forMPO> 0129 WAIT_SEC 120 0130 # 0131 # MMO Switch to Dormant Mode (70sec) 0132 # <forMPO>AJXF002A</forMPO> 0133 WAIT_SEC 300 0134 # 0135 # Return MOSIF heater setting (14sec) 0136 # <forMPO>AJXF017B</forMPO> 0291 #############################################################################

Sheet List
C1: Duration (sec) | D1: source filename | E1: filename | G1: cmdcount
A2: BUS | B2: BUS_CEL_MONI_OFF | C2: 40 | E2: dcsm-BUS_CEL_MONI_OFF | G2: 1
B3: BUS_CEL_MONI_ON | C3: 40 | E3: dcsm-BUS_CEL_MONI_ON | G3: 1
B4: BUS_CHG_BEFORE_CHK | C4: 0 | E4: dcsm-BUS_CHG_BEFORE_CHK | G4: 0
B5: BUS_CHG_EMERGENCY_OFF | C5: 86 | E5: dcsm-BUS_CHG_Emergency_OFF | G5: 5
B6: BUS_CHG_SET | C6: 298 | E6: dcsm-BUS_CHG_SET | G6: 14
B7: BUS_CHG_START | C7: 82 | E7: dcsm-BUS_CHG_START | G7: 2
B8: BUS_CHG_STOP_BAT-EXT | C8: 160 | E8: dcsm-BUS_CHG_STOP_BAT-EXT | G8: 4
B9: BUS_MMO_OFF | C9: 140 | E9: dcsm-BUS_MMO_OFF | G9: 1
B10: BUS_MMO_ON | C10: 80 | E10: dcsm-BUS_MMO_ON | G10: 2
A11: CRCO | B11: CRCO_BUS_MONI_ON | C11: 310 | E11: dcsm-CRCO_BUS_MONI_ON | G11: 10
B12: CRCO_CEL_MONI_OFF | C12: 40 | E12: dcsm-CRCO_CEL_MONI_OFF | G12: 1
B13: CRCO_ENA | C13: 1134 | E13: dcsm-CRCO_ENA_CHECK | G13: 18
B14: CRCO_HEPE | C14: 2206 | E14: dcsm-CRCO_HEPE_CHECK | G14: 36
B15: CRCO_HEPI | C15: 2730 | E15: dcsm-CRCO_HEPI_CHECK | G15: 48
B16: CRCO_MASTWPT | C16: 1848 | E16: dcsm-CRCO_MASTWPT_CHECK | G16: 41
B17: CRCO_MDM | C17: 2332 | E17: dcsm-CRCO_MDM_CHECK | G17: 45
B18: CRCO_MDP_OFF | C18: 120 | E18: dcsm-CRCO_MDP_OFF | G18: 4
B19: CRCO_MDP_ON | C19: 509 | E19: dcsm-CRCO_MDP_ON | G19: 12
B20: CRCO_MEA | C20: 4620 | E20: dcsm-CRCO_MEA_CHECK | G20: 52
B21: CRCO_MGF | C21: 3969 | E21: dcsm-CRCO_MGF_CHECK | G21: 49
B22: CRCO_MIA_C | C22: 1892 | E22: dcsm-CRCO_MIA_CHECK_C | G22: 20
B23: CRCO_MSASI | C23: 6688 | E23: dcsm-CRCO_MSASI_CHECK | G23: 23
B24: CRCO_MSA_C | C24: 1102 | E24: dcsm-CRCO_MSA_CHECK_C | G24: 19
B25: CRCO_PME_OFF | C25: 120 | E25: dcsm-CRCO_PME_OFF | G25: 5
B26: CRCO_PME_ON | C26: 160 | E26: dcsm-CRCO_PME_ON | G26: 5
B27: CRCO_PWI | C27: 2448 | E27: dcsm-CRCO_PWI_CHECK | G27: 51
B28: CRCO_SI_READY | C28: 377 | E28: dcsm-CRCO_SI_READY | G28: 17
A29: BUS | B29: BUS_OFF_D | C29: 220 | E29: dcsm-EF_BUS_MONI_OFF | G29: 5
B30: BUS_SETUP_D | C30: 577 | E30: dcsm-EF_BUS_MONI_ON | G30: 20
B31: TLM_MODE_10 | C31: 42 | E31: dcsm-EF_BUS_TLM_MODE_10 | G31: 2
B32: TLM_MODE_5 | C32: 42 | E32: dcsm-EF_BUS_TLM_MODE_5 | G32: 2
B33: TLM_MODE_7 | C33: 2 | E33: dcsm-EF_BUS_TLM_MODE_7 | G33: 1
A34: ENA | B34: ENA_HV_OFF | C34: 198 | E34: dcsm-EF_ENA_HV_OFF | G34: 4
B35: ENA_HV_ON | C35: 344 | E35: dcsm-EF_ENA_HV_ON | G35: 18
B36: ENA_HV_ON_H | C36: 344 | E36: dcsm-EF_ENA_HV_ON_H | G36: 18
B37: ENA_OFF | C37: 88 | E37: dcsm-EF_ENA_power_OFF | G37: 4
B38: ENA_ON_SETUP | C38: 564 | E38: dcsm-EF_ENA_power_ON | G38: 7
A39: HEP | B39: HEP_HV_OFF | C39: 190 | E39: dcsm-EF_HEPE_HV_OFF_OBS_OFF | G39: 5
B40: HEP_HV_ON | C40: 270 | E40: dcsm-EF_HEPE_HV_ON_OBS_START | G40: 6
B41: HEP_OFF | C41: 70 | E41: dcsm-EF_HEPE_OFF_STOP | G41: 4
B42: HEP_ON_SETUP | C42: 1230 | E42: dcsm-EF_HEP_ON_START_for_TL | G42: 34
A43: MDM | B43: MDM_OFF | C43: 160 | E43: dcsm-EF_MDM_OFF | G43: 4
B44: MDM_ON_SETUP | C44: 202 | E44: dcsm-EF_MDM_ON | G44: 6
A45: MDP | B45: MDP_CRUISE_SET | C45: 42 | E45: dcsm-EF_MDP_CRUISE_SET | G45: 2
B46: MDP_ERR_DUMP | C46: 9080 | E46: dcsm-EF_MDP_ERR_DUMP | G46: 6
B47: MDP_ON_D | C47: 509 | E47: dcsm-EF_MDP_ON | G47: 11
B48: MDP_OFF_D | C48: 120 | E48: dcsm-EF_MDP_POWEROFF | G48: 3
A49: MEA | B49: MEA1_HV_OFF | C49: 182 | E49: dcsm-EF_MEA1_HV_OFF | G49: 10
B50: MEA1_HV_ON | C50: 1702 | E50: dcsm-EF_MEA1_HV_ON | G50: 27
B51: MEA1_HV_SCAN_OFF | C51: 186 | E51: dcsm-EF_MEA1_HV_SCAN_OFF | G51: 12
B52: MEA1_OFF | C52: 160 | E52: dcsm-EF_MEA1_OFF | G52: 4
B53: MEA1_ON_SETUP_SW | C53: 292 | E53: dcsm-EF_MEA1_ON_SW | G53: 12
B54: MEA_HV_OFF | C54: 202 | E54: dcsm-EF_MEA_HV_OFF | G54: 20
B55: MEA_HV_ON | C55: 1756 | E55: dcsm-EF_MEA_HV_ON | G55: 54
B56: MEA_HV_ON_MOD | C56: 126 | E56: dcsm-EF_MEA_HV_ON_modified | G56: 6
B57: MEA_HV_SCAN_OFF | C57: 210 | E57: dcsm-EF_MEA_HV_SCAN_OFF | G57: 24
B58: MEA_OFF | C58: 164 | E58: dcsm-EF_MEA_OFF | G58: 6
B59: MEA_ON_SETUP_MAG | C59: 386 | E59: dcsm-EF_MEA_ON_MAG | G59: 21
B60: MEA_ON_SETUP_SW | C60: 386 | E60: dcsm-EF_MEA_ON_SW | G60: 21
A61: MGF | B61: MGF_OFF | C61: 8 | E61: dcsm-EF_MGF_OFF | G61: 1
B62: MGF_ON_SETUP | C62: 14 | E62: dcsm-EF_MGF_ON | G62: 3
A63: MIA | B63: MIA_HV_OFF | C63: 60 | E63: dcsm-EF_MIA_HV_OFF | G63: 1
B64: MIA_HV_ON | C64: 240 | E64: dcsm-EF_MIA_HV_ON | G64: 6
B65: MIA_HV_ON_MAG | C65: 142 | E65: dcsm-EF_MIA_HV_ON_MAG | G65: 4
B66: MIA_HV_ON_MAG_RC | C66: 262 | E66: dcsm-EF_MIA_HV_ON_MAG_RC | G66: 7
B67: MIA_HV_ON_RC | C67: 280 | E67: dcsm-EF_MIA_HV_ON_RC | G67: 7
B68: MIA_HV_ON_SW | C68: 102 | E68: dcsm-EF_MIA_HV_ON_SW | G68: 3
B69: MIA_HV_ON_SW_RC | C69: 262 | E69: dcsm-EF_MIA_HV_ON_SW_RC | G69: 7
B70: MIA_OFF | C70: 160 | E70: dcsm-EF_MIA_OFF | G70: 4
B71: MIA_ON_SETUP | C71: 382 | E71: dcsm-EF_MIA_ON | G71: 6
B72: MIA_ON_ASIC_LDET | C72: 582 | E72: dcsm-EF_MIA_ON_ASIC_LDET | G72: 11
B73: MIA_ON_C | C73: 0 | E73: dcsm-EF_MIA_ON_C | G73: 0
A74: MSA | B74: MSA_HV_OFF | C74: 714 | E74: dcsm-EF_MSA_HV_OFF | G74: 24
B75: MSA_HV_OFF_VFB | C75: 774 | E75: dcsm-EF_MSA_HV_OFF_VFB | G75: 25
B76: MSA_HV_ON_1 | C76: 4692 | E76: dcsm-EF_MSA_HV_ON_1 | G76: 108
B77: MSA_HV_ON_1_MFB_SF | C77: 1573 | E77: dcsm-EF_MSA_HV_ON_1_MFB_Safe | G77: 108
B78: MSA_HV_ON_VFB1 | C78: 2882 | E78: dcsm-EF_MSA_HV_ON_1_VFB | G78: 108
B79: MSA_HV_ON_2 | C79: 6262 | E79: dcsm-EF_MSA_HV_ON_2 | G79: 124
B80: MSA_HV_ON_2_MFB_SF | C80: 1860 | E80: dcsm-EF_MSA_HV_ON_2_MFB_Safe | G80: 124
B81: MSA_HV_ON_VFB2 | C81: 3262 | E81: dcsm-EF_MSA_HV_ON_2_VFB | G81: 124
B82: MSA_OFF | C82: 380 | E82: dcsm-EF_MSA_OFF | G82: 25
B83: MSA_ON_SETUP | C83: 1092 | E83: dcsm-EF_MSA_ON | G83: 15
B84: MSA_ON_SETUP_C | C84: 1092 | E84: dcsm-EF_MSA_ON_C | G84: 15
B85: MSA_SOFT_RESET | C85: 120 | E85: dcsm-EF_MSA_SOFT_RESET | G85: 3
B86: MSA_SOFT_RESET2 | C86: 100 | E86: dcsm-EF_MSA_SOFT_RESET2 | G86: 5
A87: PME | B87: PME_OFF | C87: 40 | E87: dcsm-EF_PME_OFF | G87: 1
B88: PME_ON | C88: 80 | E88: dcsm-EF_PME_ON | G88: 2
A89: PWI | B89: PWI_OFF | C89: 80 | E89: dcsm-EF_PWI_OFF | G89: 2
B90: PWI_ON | C90: 828 | E90: dcsm-EF_PWI_ON | G90: 26
B91: PWI_ON_SETUP | C91: 868 | E91: dcsm-EF_PWI_ON_CRUISE | G91: 27
A92: MACRO | B92: MC_ENA | C92: 246 | E92: dcsm-MC_ENA_MDP | G92: 21
A93: MDP | B93: MDP_AP9_DUMP | C93: 1880 | E93: dcsm-MDP_AP09_LOG_DUMP | G93: 4
B94: MDP_ERR_LOG_DUMP | C94: 9080 | E94: dcsm-MDP_ERR_LOG_DUMP | G94: 6
B95: MDP_HK_REPEINT_6 | C95: 42 | E95: dcsm-MDP_HK_REPINT_6 | G95: 2
A96: MEA | B96: MEA2_MEM_DMP | C96: 2550 | E96: dcsm-MEA2_MEM_DMP | G96: 36
A97: MSASI | B97: MSASI_DARK_1 | C97: 768 | E97: dcsm-MSASI_dark_CO_sequence1 | G97: 11
B98: MSASI_DARK_2 | C98: 19498 | E98: dcsm-MSASI_dark_CO_sequence2 | G98: 55
A99: MSA | B99: MSA_TABLE_UPLOAD | C99: 0 | E99: dcsm-MSA_TABLE_UPLOAD | G99: 0
A100: TCFS | B100: TCSF_MSASI | C100: 345 | E100: dcsm-tcfs_tbl1_msasi_set | G100: 13
A101: WAIT | B101: WAIT3600 | C101: 3600
B102: WAIT3500 | C102: 3500
B103: WAIT19357 | C103: 19357
B104: WAIT1800 | C104: 1800 | E104: WAIT_SEC 1800
B105: WAIT10800 | C105: 10800 | E105: WAIT_SEC 10800
B106: WAIT600 | C106: 600 | E106: WAIT_SEC 600

Sheet WOL
C1: START TIME | D1: 2022-03-17T05:00:00
C2: END TIME | D2: 2022-03-26T23:20:00
B3: ID | D3: date time excel | E3: duration(s)
B4: WOLS | C4: WOL#1 | D4: 2022-03-18T02:26:56 | E4: 1200
B5: WOLS | C5: WOL#2 | D5: 2022-03-18T21:35:20 | E5: 1200
B6: WOLS | C6: WOL#3 | D6: 2022-03-19T20:16:25 | E6: 1200
B7: WOLS | C7: WOL#4 | D7: 2022-03-20T20:30:43 | E7: 1200
B8: WOLS | C8: WOL#5 | D8: 2022-03-21T22:10:35 | E8: 1200
B9: WOLS | C9: WOL#6 | D9: 2022-03-23T01:51:05 | E9: 1200
B10: WOLS | C10: WOL#7 | D10: 2022-03-24T10:36:36 | E10: 1200
B11: WOLS | C11: WOL#8 | D11: 2022-03-25T23:06:54 | E11: 1200
B13: WOLS | C13: WOL#9 | D13: 2022-03-26T23:24:55 | E13: 1200
B14: WOLS | C14: WOL#10 | D14: 2022-03-27T19:46:14 | E14: 1200
B15: WOLS | C15: WOL#11 | D15: 2022-03-28T20:40:09 | E15: 1200
B16: WOLS | C16: WOL#12 | D16: 2022-03-30T01:51:05 | E16: 1200
B17: WOLS | C17: WOL#13 | D17: 2022-03-31T10:19:54 | E17: 1200
B18: WOLS | C18: WOL#14 | D18: 2022-04-01T18:53:54 | E18: 1200
B19: WOLS | C19: WOL#15 | D19: 2022-04-02T21:42:12 | E19: 1200
B20: WOLS | C20: WOL#16 | D20: 2022-04-03T20:54:29 | E20: 1200
B21: WOLS | C21: WOL#17 | D21: 2022-04-04T20:44:09 | E21: 1200
B22: WOLS | C22: WOL#18 | D22: 2022-04-06T01:25:47 | E22: 1200
B23: WOLS | C23: WOL#19 | D23: 2022-04-07T01:22:18 | E23: 1200

Sheet obs_sequence
A1: START | C1: =WOL!D1 -> 2022-03-17T05:00:00 | D1: OBCP START | E1: =C1 -> 2022-03-17T05:00:00 | L1: 5days
A2: END | C2: =C208 -> 2022-04-07T23:50:00 | D2: OBCP END | E2: =C2+(240+120+300)/3600/24 -> 2022-04-08T00:01:00 | F2: CMD END | G2: =C2-100/3600/24 -> 2022-04-07T23:48:20
A4: Relative time (h) | C4: Absolute time (UTC) | K4: main2-CROUSE_OBS12_4_XDOR_001_M63.cps | L4: =+SUM(L6:L85) -> 544
A5: Start | B5: End | C5: Start | D5: End | E5: Event | F5: Activity | G5: Procedure | H5: Duration (sec) | L5: cmd count | M5: XOR Time | N5: cmd count
C6: 2022-03-17T05:00:00 | D6: =C6+H6/3600/24 -> 2022-03-17T05:08:29 | F6: MDP ON | G6: MDP_ON_D | H6: =VLOOKUP(G6,List!B:C,2,0) -> 509 | K6: =VLOOKUP(G6,List!B:E,4,0) -> dcsm-EF_MDP_ON | L6: =VLOOKUP(G6,List!B:G,6,0) -> 11 | M6: =C6-317/3600/24 -> 2022-03-17T04:54:43 | N6: =+"0000 CALL "&K6&" -Run" -> 0000 CALL dcsm-EF_MDP_ON -Run
C7: =D6 -> 2022-03-17T05:08:29 | D7: =C7+H7/3600/24 -> 2022-03-17T05:09:11 | G7: MDP_CRUISE_SET | H7: =VLOOKUP(G7,List!B:C,2,0) -> 42 | K7: =VLOOKUP(G7,List!B:E,4,0) -> dcsm-EF_MDP_CRUISE_SET | L7: =VLOOKUP(G7,List!B:G,6,0) -> 2 | M7: 2022-03-17T05:03:12 | N7: 0000 CALL dcsm-EF_MDP_CRUISE_SET -Run
C8: =D7 -> 2022-03-17T05:09:11 | D8: =C8+H8/3600/24 -> 2022-03-17T05:09:53 | F8: TLM mode change (MODE_10) | G8: TLM_MODE_10 | H8: =VLOOKUP(G8,List!B:C,2,0) -> 42 | K8: =VLOOKUP(G8,List!B:E,4,0) -> dcsm-EF_BUS_TLM_MODE_10 | L8: =VLOOKUP(G8,List!B:G,6,0) -> 2 | M8: 2022-03-17T05:03:54 | N8: 0000 CALL dcsm-EF_BUS_TLM_MODE_10 -Run
C9: 2022-03-17T05:09:53 | D9: 2022-03-17T05:14:45 | F9: SI ON | G9: MEA1_ON_SETUP_SW | H9: =VLOOKUP(G9,List!B:C,2,0) -> 292 | K9: =VLOOKUP(G9,List!B:E,4,0) -> dcsm-EF_MEA1_ON_SW | L9: =VLOOKUP(G9,List!B:G,6,0) -> 12 | M9: 2022-03-17T05:04:36 | N9: 0000 CALL dcsm-EF_MEA1_ON_SW -Run
C10: 2022-03-17T05:14:45 | D10: 2022-03-17T05:35:15 | G10: HEP_ON_SETUP | H10: =VLOOKUP(G10,List!B:C,2,0) -> 1230 | K10: =VLOOKUP(G10,List!B:E,4,0) -> dcsm-EF_HEP_ON_START_for_TL | L10: =VLOOKUP(G10,List!B:G,6,0) -> 34 | M10: 2022-03-17T05:09:28 | N10: 0000 CALL dcsm-EF_HEP_ON_START_for_TL -Run
C11: 2022-03-17T05:35:15 | D11: 2022-03-17T05:36:35 | G11: PME_ON | H11: =VLOOKUP(G11,List!B:C,2,0) -> 80 | K11: =VLOOKUP(G11,List!B:E,4,0) -> dcsm-EF_PME_ON | L11: =VLOOKUP(G11,List!B:G,6,0) -> 2 | M11: 2022-03-17T05:29:58 | N11: 0000 CALL dcsm-EF_PME_ON -Run
C12: 2022-03-17T05:36:35 | D12: 2022-03-17T05:36:49 | G12: MGF_ON_SETUP | H12: =VLOOKUP(G12,List!B:C,2,0) -> 14 | K12: =VLOOKUP(G12,List!B:E,4,0) -> dcsm-EF_MGF_ON | L12: =VLOOKUP(G12,List!B:G,6,0) -> 3 | M12: 2022-03-17T05:31:18 | N12: 0000 CALL dcsm-EF_MGF_ON -Run
C13: =D12 -> 2022-03-17T05:36:49 | D13: 2022-03-17T06:05:11 | F13: SI HV ON | G13: MEA1_HV_ON | H13: =VLOOKUP(G13,List!B:C,2,0) -> 1702 | K13: =VLOOKUP(G13,List!B:E,4,0) -> dcsm-EF_MEA1_HV_ON | L13: =VLOOKUP(G13,List!B:G,6,0) -> 27 | M13: 2022-03-17T05:31:32 | N13: =+"0000 CALL "&K13&" -Run" -> 0000 CALL dcsm-EF_MEA1_HV_ON -Run
C14: =D13 -> 2022-03-17T06:05:11 | D14: 2022-03-17T06:09:41 | G14: HEP_HV_ON | H14: =VLOOKUP(G14,List!B:C,2,0) -> 270 | K14: =VLOOKUP(G14,List!B:E,4,0) -> dcsm-EF_HEPE_HV_ON_OBS_START | L14: =VLOOKUP(G14,List!B:G,6,0) -> 6 | M14: 2022-03-17T05:59:54 | N14: =+"0000 CALL "&K14&" -Run" -> 0000 CALL dcsm-EF_HEPE_HV_ON_OBS_START -Run
C15: 2022-03-17T06:09:41 | D15: 2022-03-17T06:10:23 | F15: TLM mode change (MODE_5) | G15: TLM_MODE_5 | H15: =VLOOKUP(G15,List!B:C,2,0) -> 42 | K15: =VLOOKUP(G15,List!B:E,4,0) -> dcsm-EF_BUS_TLM_MODE_5 | L15: =VLOOKUP(G15,List!B:G,6,0) -> 2 | M15: 2022-03-17T06:04:24 | N15: 0000 CALL dcsm-EF_BUS_TLM_MODE_5 -Run
C16: 2022-03-17T06:10:23 | D16: =C17 -> 2022-03-18T02:20:02 | E16: Observation A | H16: =(D16-C16)*3600*24 -> 72579 | I16: =H16/3600 -> 20.16083333 | L16: 0 | M16: 2022-03-17T06:05:06 | N16: ="0000 WAIT_SEC "&TEXT(H16,"#0") -> 0000 WAIT_SEC 72579
C17: =D17-H17/3600/24 -> 2022-03-18T02:20:02 | D17: =C18 -> 2022-03-18T02:20:44 | F17: TLM mode change (MODE_10) | G17: TLM_MODE_10 | H17: =VLOOKUP(G17,List!B:C,2,0) -> 42 | K17: =VLOOKUP(G17,List!B:E,4,0) -> dcsm-EF_BUS_TLM_MODE_10 | L17: =VLOOKUP(G17,List!B:G,6,0) -> 2 | M17: 2022-03-18T02:14:45 | N17: =+"0000 CALL "&K17&" -Run" -> 0000 CALL dcsm-EF_BUS_TLM_MODE_10 -Run
C18: =D18-H18/3600/24 -> 2022-03-18T02:20:44 | D18: =C19 -> 2022-03-18T02:23:54 | F18: SI HV OFF | G18: HEP_HV_OFF | H18: =VLOOKUP(G18,List!B:C,2,0) -> 190 | K18: =VLOOKUP(G18,List!B:E,4,0) -> dcsm-EF_HEPE_HV_OFF_OBS_OFF | L18: =VLOOKUP(G18,List!B:G,6,0) -> 5 | M18: 2022-03-18T02:15:27 | N18: 0000 CALL dcsm-EF_HEPE_HV_OFF_OBS_OFF -Run
C19: =D19-H19/3600/24 -> 2022-03-18T02:23:54 | D19: =C20 -> 2022-03-18T02:26:56 | G19: MEA1_HV_OFF | H19: =VLOOKUP(G19,List!B:C,2,0) -> 182 | K19: =VLOOKUP(G19,List!B:E,4,0) -> dcsm-EF_MEA1_HV_OFF | L19: =VLOOKUP(G19,List!B:G,6,0) -> 10 | M19: 2022-03-18T02:18:37 | N19: 0000 CALL dcsm-EF_MEA1_HV_OFF -Run
C20: 2022-03-18T02:26:56 | D20: =C20+H20/3600/24 -> 2022-03-18T02:46:56 | E20: WOL#1 | G20: =(C21-D19)*24*3600 -> 1800 | H20: 1200 | L20: 0 | M20: 2022-03-18T02:21:39 | N20: ="0000 WAIT_SEC "&TEXT(G20,"#0") -> 0000 WAIT_SEC 1800
C21: =D20+10/60/24 -> 2022-03-18T02:56:56 | D21: =C21+H21/3600/24 -> 2022-03-18T03:25:18 | F21: SI HV ON | G21: MEA1_HV_ON | H21: =VLOOKUP(G21,List!B:C,2,0) -> 1702 | K21: =VLOOKUP(G21,List!B:E,4,0) -> dcsm-EF_MEA1_HV_ON | L21: =VLOOKUP(G21,List!B:G,6,0) -> 27 | M21: 2022-03-18T02:51:39 | N21: =+"0000 CALL "&K21&" -Run" -> 0000 CALL dcsm-EF_MEA1_HV_ON -Run
C22: =D21 -> 2022-03-18T03:25:18 | D22: 2022-03-18T03:29:48 | G22: HEP_HV_ON | H22: =VLOOKUP(G22,List!B:C,2,0) -> 270 | K22: =VLOOKUP(G22,List!B:E,4,0) -> dcsm-EF_HEPE_HV_ON_OBS_START | L22: =VLOOKUP(G22,List!B:G,6,0) -> 6 | M22: 2022-03-18T03:20:01 | N22: =+"0000 CALL "&K22&" -Run" -> 0000 CALL dcsm-EF_HEPE_HV_ON_OBS_START -Run
C23: 2022-03-18T03:29:48 | D23: 2022-03-18T03:30:30 | F23: TLM mode change (MODE_5) | G23: TLM_MODE_5 | H23: =VLOOKUP(G23,List!B:C,2,0) -> 42 | K23: =VLOOKUP(G23,List!B:E,4,0) -> dcsm-EF_BUS_TLM_MODE_5 | L23: =VLOOKUP(G23,List!B:G,6,0) -> 2 | M23: 2022-03-18T03:24:31 | N23: 0000 CALL dcsm-EF_BUS_TLM_MODE_5 -Run
C24: 2022-03-18T03:30:30 | D24: =C25 -> 2022-03-18T21:28:26 | E24: Observation B | H24: =(D24-C24)*3600*24 -> 64676 | I24: =H24/3600 -> 17.96555556 | L24: 0 | M24: 2022-03-18T03:25:13 | N24: ="0000 WAIT_SEC "&TEXT(H24,"#0") -> 0000 WAIT_SEC 64676
C25: =D25-H25/3600/24 -> 2022-03-18T21:28:26 | D25: =C26 -> 2022-03-18T21:29:08 | F25: TLM mode change (MODE_10) | G25: TLM_MODE_10 | H25: =VLOOKUP(G25,List!B:C,2,0) -> 42 | K25: =VLOOKUP(G25,List!B:E,4,0) -> dcsm-EF_BUS_TLM_MODE_10 | L25: =VLOOKUP(G25,List!B:G,6,0) -> 2 | M25: 2022-03-18T21:23:09 | N25: =+"0000 CALL "&K25&" -Run" -> 0000 CALL dcsm-EF_BUS_TLM_MODE_10 -Run
C26: =D26-H26/3600/24 -> 2022-03-18T21:29:08 | D26: =C27 -> 2022-03-18T21:32:18 | F26: SI HV OFF | G26: HEP_HV_OFF | H26: =VLOOKUP(G26,List!B:C,2,0) -> 190 | K26: =VLOOKUP(G26,List!B:E,4,0) -> dcsm-EF_HEPE_HV_OFF_OBS_OFF | L26: =VLOOKUP(G26,List!B:G,6,0) -> 5 | M26: 2022-03-18T21:23:51 | N26: 0000 CALL dcsm-EF_HEPE_HV_OFF_OBS_OFF -Run
C27: =D27-H27/3600/24 -> 2022-03-18T21:32:18 | D27: =C28 -> 2022-03-18T21:35:20 | G27: MEA1_HV_OFF | H27: =VLOOKUP(G27,List!B:C,2,0) -> 182 | K27: =VLOOKUP(G27,List!B:E,4,0) -> dcsm-EF_MEA1_HV_OFF | L27: =VLOOKUP(G27,List!B:G,6,0) -> 10 | M27: 2022-03-18T21:27:01 | N27: 0000 CALL dcsm-EF_MEA1_HV_OFF -Run
C28: 2022-03-18T21:35:20 | D28: =C28+H28/3600/24 -> 2022-03-18T21:55:20 | E28: WOL#2 | G28: =(C29-D27)*24*3600 -> 1800 | H28: 1200 | L28: 0 | M28: 2022-03-18T21:30:03 | N28: ="0000 WAIT_SEC "&TEXT(G28,"#0") -> 0000 WAIT_SEC 1800
C29: =D28+10/60/24 -> 2022-03-18T22:05:20 | D29: =C29+H29/3600/24 -> 2022-03-18T22:33:42 | F29: SI HV ON | G29: MEA1_HV_ON | H29: =VLOOKUP(G29,List!B:C,2,0) -> 1702 | K29: =VLOOKUP(G29,List!B:E,4,0) -> dcsm-EF_MEA1_HV_ON | L29: =VLOOKUP(G29,List!B:G,6,0) -> 27 | M29: 2022-03-18T22:00:03 | N29: =+"0000 CALL "&K29&" -Run" -> 0000 CALL dcsm-EF_MEA1_HV_ON -Run
C30: =D29 -> 2022-03-18T22:33:42 | D30: 2022-03-18T22:38:12 | G30: HEP_HV_ON | H30: =VLOOKUP(G30,List!B:C,2,0) -> 270 | K30: =VLOOKUP(G30,List!B:E,4,0) -> dcsm-EF_HEPE_HV_ON_OBS_START | L30: =VLOOKUP(G30,List!B:G,6,0) -> 6 | M30: 2022-03-18T22:28:25 | N30: =+"0000 CALL "&K30&" -Run" -> 0000 CALL dcsm-EF_HEPE_HV_ON_OBS_START -Run
C31: 2022-03-18T22:38:12 | D31: 2022-03-18T22:38:54 | F31: TLM mode change (MODE_5) | G31: TLM_MODE_5 | H31: =VLOOKUP(G31,List!B:C,2,0) -> 42 | K31: =VLOOKUP(G31,List!B:E,4,0) -> dcsm-EF_BUS_TLM_MODE_5 | L31: =VLOOKUP(G31,List!B:G,6,0) -> 2 | M31: 2022-03-18T22:32:55 | N31: 0000 CALL dcsm-EF_BUS_TLM_MODE_5 -Run
C32: 2022-03-18T22:38:54 | D32: =C33 -> 2022-03-19T20:09:31 | E32: Observation C | H32: =(D32-C32)*3600*24 -> 77437 | I32: =H32/3600 -> 21.51027778 | L32: 0 | M32: 2022-03-18T22:33:37 | N32: ="0000 WAIT_SEC "&TEXT(H32,"#0") -> 0000 WAIT_SEC 77437
C33: =D33-H33/3600/24 -> 2022-03-19T20:09:31 | D33: =C34 -> 2022-03-19T20:10:13 | F33: TLM mode change (MODE_10) | G33: TLM_MODE_10 | H33: =VLOOKUP(G33,List!B:C,2,0) -> 42 | K33: =VLOOKUP(G33,List!B:E,4,0) -> dcsm-EF_BUS_TLM_MODE_10 | L33: =VLOOKUP(G33,List!B:G,6,0) -> 2 | M33: 2022-03-19T20:04:14 | N33: =+"0000 CALL "&K33&" -Run" -> 0000 CALL dcsm-EF_BUS_TLM_MODE_10 -Run
C34: =D34-H34/3600/24 -> 2022-03-19T20:10:13 | D34: =C35 -> 2022-03-19T20:13:23 | F34: SI HV OFF | G34: HEP_HV_OFF | H34: =VLOOKUP(G34,List!B:C,2,0) -> 190 | K34: =VLOOKUP(G34,List!B:E,4,0) -> dcsm-EF_HEPE_HV_OFF_OBS_OFF | L34: =VLOOKUP(G34,List!B:G,6,0) -> 5 | M34: 2022-03-19T20:04:56 | N34: 0000 CALL dcsm-EF_HEPE_HV_OFF_OBS_OFF -Run
C35: =D35-H35/3600/24 -> 2022-03-19T20:13:23 | D35: =C36 -> 2022-03-19T20:16:25 | G35: MEA1_HV_OFF | H35: =VLOOKUP(G35,List!B:C,2,0) -> 182 | K35: =VLOOKUP(G35,List!B:E,4,0) -> dcsm-EF_MEA1_HV_OFF | L35: =VLOOKUP(G35,List!B:G,6,0) -> 10 | M35: 2022-03-19T20:08:06 | N35: 0000 CALL dcsm-EF_MEA1_HV_OFF -Run
C36: 2022-03-19T20:16:25 | D36: =C36+H36/3600/24 -> 2022-03-19T20:36:25 | E36: WOL#3 | G36: =(C37-D35)*24*3600 -> 1800 | H36: 1200 | L36: 0 | M36: 2022-03-19T20:11:08 | N36: ="0000 WAIT_SEC "&TEXT(G36,"#0") -> 0000 WAIT_SEC 1800
C37: =D36+10/60/24 -> 2022-03-19T20:46:25 | D37: =C37+H37/3600/24 -> 2022-03-19T21:14:47 | F37: SI HV ON | G37: MEA1_HV_ON | H37: =VLOOKUP(G37,List!B:C,2,0) -> 1702 | K37: =VLOOKUP(G37,List!B:E,4,0) -> dcsm-EF_MEA1_HV_ON | L37: =VLOOKUP(G37,List!B:G,6,0) -> 27 | M37: 2022-03-19T20:41:08 | N37: =+"0000 CALL "&K37&" -Run" -> 0000 CALL dcsm-EF_MEA1_HV_ON -Run
C38: =D37 -> 2022-03-19T21:14:47 | D38: 2022-03-19T21:19:17 | G38: HEP_HV_ON | H38: =VLOOKUP(G38,List!B:C,2,0) -> 270 | K38: =VLOOKUP(G38,List!B:E,4,0) -> dcsm-EF_HEPE_HV_ON_OBS_START | L38: =VLOOKUP(G38,List!B:G,6,0) -> 6 | M38: 2022-03-19T21:09:30 | N38: =+"0000 CALL "&K38&" -Run" -> 0000 CALL dcsm-EF_HEPE_HV_ON_OBS_START -Run
C39: 2022-03-19T21:19:17 | D39: 2022-03-19T21:19:59 | F39: TLM mode change (MODE_5) | G39: TLM_MODE_5 | H39: =VLOOKUP(G39,List!B:C,2,0) -> 42 | K39: =VLOOKUP(G39,List!B:E,4,0) -> dcsm-EF_BUS_TLM_MODE_5 | L39: =VLOOKUP(G39,List!B:G,6,0) -> 2 | M39: 2022-03-19T21:14:00 | N39: 0000 CALL dcsm-EF_BUS_TLM_MODE_5 -Run
C40: 2022-03-19T21:19:59 | D40: =C41 -> 2022-03-20T20:23:49 | E40: Observation D | H40: =(D40-C40)*3600*24 -> 83030 | I40: =H40/3600 -> 23.06388889 | L40: 0 | M40: 2022-03-19T21:14:42 | N40: ="0000 WAIT_SEC "&TEXT(H40,"#0") -> 0000 WAIT_SEC 83030
C41: =D41-H41/3600/24 -> 2022-03-20T20:23:49 | D41: =C42 -> 2022-03-20T20:24:31 | F41: TLM mode change (MODE_10) | G41: TLM_MODE_10 | H41: =VLOOKUP(G41,List!B:C,2,0) -> 42 | K41: =VLOOKUP(G41,List!B:E,4,0) -> dcsm-EF_BUS_TLM_MODE_10 | L41: =VLOOKUP(G41,List!B:G,6,0) -> 2 | M41: 2022-03-20T20:18:32 | N41: =+"0000 CALL "&K41&" -Run" -> 0000 CALL dcsm-EF_BUS_TLM_MODE_10 -Run
C42: =D42-H42/3600/24 -> 2022-03-20T20:24:31 | D42: =C43 -> 2022-03-20T20:27:41 | F42: SI HV OFF | G42: HEP_HV_OFF | H42: =VLOOKUP(G42,List!B:C,2,0) -> 190 | K42: =VLOOKUP(G42,List!B:E,4,0) -> dcsm-EF_HEPE_HV_OFF_OBS_OFF | L42: =VLOOKUP(G42,List!B:G,6,0) -> 5 | M42: 2022-03-20T20:19:14 | N42: 0000 CALL dcsm-EF_HEPE_HV_OFF_OBS_OFF -Run
C43: =D43-H43/3600/24 -> 2022-03-20T20:27:41 | D43: =C44 -> 2022-03-20T20:30:43 | G43: MEA1_HV_OFF | H43: =VLOOKUP(G43,List!B:C,2,0) -> 182 | K43: =VLOOKUP(G43,List!B:E,4,0) -> dcsm-EF_MEA1_HV_OFF | L43: =VLOOKUP(G43,List!B:G,6,0) -> 10 | M43: 2022-03-20T20:22:24 | N43: 0000 CALL dcsm-EF_MEA1_HV_OFF -Run
C44: 2022-03-20T20:30:43 | D44: =C44+H44/3600/24 -> 2022-03-20T20:50:43 | E44: WOL#4 | G44: =(C45-D43)*24*3600 -> 1800 | H44: 1200 | L44: 0 | M44: 2022-03-20T20:25:26 | N44: ="0000 WAIT_SEC "&TEXT(G44,"#0") -> 0000 WAIT_SEC 1800
C45: =D44+10/60/24 -> 2022-03-20T21:00:43 | D45: =C45+H45/3600/24 -> 2022-03-20T21:29:05 | F45: SI HV ON | G45: MEA1_HV_ON | H45: =VLOOKUP(G45,List!B:C,2,0) -> 1702 | K45: =VLOOKUP(G45,List!B:E,4,0) -> dcsm-EF_MEA1_HV_ON | L45: =VLOOKUP(G45,List!B:G,6,0) -> 27 | M45: 2022-03-20T20:55:26 | N45: =+"0000 CALL "&K45&" -Run" -> 0000 CALL dcsm-EF_MEA1_HV_ON -Run
C46: =D45 -> 2022-03-20T21:29:05 | D46: 2022-03-20T21:33:35 | G46: HEP_HV_ON | H46: =VLOOKUP(G46,List!B:C,2,0) -> 270 | K46: =VLOOKUP(G46,List!B:E,4,0) -> dcsm-EF_HEPE_HV_ON_OBS_START | L46: =VLOOKUP(G46,List!B:G,6,0) -> 6 | M46: 2022-03-20T21:23:48 | N46: =+"0000 CALL "&K46&" -Run" -> 0000 CALL dcsm-EF_HEPE_HV_ON_OBS_START -Run
C47: 2022-03-20T21:33:35 | D47: 2022-03-20T21:34:17 | F47: TLM mode change (MODE_5) | G47: TLM_MODE_5 | H47: =VLOOKUP(G47,List!B:C,2,0) -> 42 | K47: =VLOOKUP(G47,List!B:E,4,0) -> dcsm-EF_BUS_TLM_MODE_5 | L47: =VLOOKUP(G47,List!B:G,6,0) -> 2 | M47: 2022-03-20T21:28:18 | N47: 0000 CALL dcsm-EF_BUS_TLM_MODE_5 -Run
C48: 2022-03-20T21:34:17 | D48: =C49 -> 2022-03-21T22:03:41 | E48: Observation E | H48: =(D48-C48)*3600*24 -> 88164 | I48: =H48/3600 -> 24.49 | L48: 0 | M48: 2022-03-20T21:29:00 | N48: ="0000 WAIT_SEC "&TEXT(H48,"#0") -> 0000 WAIT_SEC 88164
C49: =D49-H49/3600/24 -> 2022-03-21T22:03:41 | D49: =C50 -> 2022-03-21T22:04:23 | F49: TLM mode change (MODE_10) | G49: TLM_MODE_10 | H49: =VLOOKUP(G49,List!B:C,2,0) -> 42 | K49: =VLOOKUP(G49,List!B:E,4,0) -> dcsm-EF_BUS_TLM_MODE_10 | L49: =VLOOKUP(G49,List!B:G,6,0) -> 2 | M49: 2022-03-21T21:58:24 | N49: =+"0000 CALL "&K49&" -Run" -> 0000 CALL dcsm-EF_BUS_TLM_MODE_10 -Run
C50: =D50-H50/3600/24 -> 2022-03-21T22:04:23 | D50: =C51 -> 2022-03-21T22:07:33 | F50: SI HV OFF | G50: HEP_HV_OFF | H50: =VLOOKUP(G50,List!B:C,2,0) -> 190 | K50: =VLOOKUP(G50,List!B:E,4,0) -> dcsm-EF_HEPE_HV_OFF_OBS_OFF | L50: =VLOOKUP(G50,List!B:G,6,0) -> 5 | M50: 2022-03-21T21:59:06 | N50: 0000 CALL dcsm-EF_HEPE_HV_OFF_OBS_OFF -Run
C51: =D51-H51/3600/24 -> 2022-03-21T22:07:33 | D51: =C52 -> 2022-03-21T22:10:35 | G51: MEA1_HV_OFF | H51: =VLOOKUP(G51,List!B:C,2,0) -> 182 | K51: =VLOOKUP(G51,List!B:E,4,0) -> dcsm-EF_MEA1_HV_OFF | L51: =VLOOKUP(G51,List!B:G,6,0) -> 10 | M51: 2022-03-21T22:02:16 | N51: 0000 CALL dcsm-EF_MEA1_HV_OFF -Run
C52: 2022-03-21T22:10:35 | D52: =C52+H52/3600/24 -> 2022-03-21T22:30:35 | E52: WOL#5 | G52: =(C53-D51)*24*3600 -> 1800 | H52: 1200 | L52: 0 | M52: 2022-03-21T22:05:18 | N52: ="0000 WAIT_SEC "&TEXT(G52,"#0") -> 0000 WAIT_SEC 1800
C53: =D52+10/60/24 -> 2022-03-21T22:40:35 | D53: =C53+H53/3600/24 -> 2022-03-21T23:08:57 | F53: SI HV ON | G53: MEA1_HV_ON | H53: =VLOOKUP(G53,List!B:C,2,0) -> 1702 | K53: =VLOOKUP(G53,List!B:E,4,0) -> dcsm-EF_MEA1_HV_ON | L53: =VLOOKUP(G53,List!B:G,6,0) -> 27 | M53: 2022-03-21T22:35:18 | N53: =+"0000 CALL "&K53&" -Run" -> 0000 CALL dcsm-EF_MEA1_HV_ON -Run
C54: =D53 -> 2022-03-21T23:08:57 | D54: 2022-03-21T23:13:27 | G54: HEP_HV_ON | H54: =VLOOKUP(G54,List!B:C,2,0) -> 270 | K54: =VLOOKUP(G54,List!B:E,4,0) -> dcsm-EF_HEPE_HV_ON_OBS_START | L54: =VLOOKUP(G54,List!B:G,6,0) -> 6 | M54: 2022-03-21T23:03:40 | N54: =+"0000 CALL "&K54&" -Run" -> 0000 CALL dcsm-EF_HEPE_HV_ON_OBS_START -Run
C55: 2022-03-21T23:13:27 | D55: 2022-03-21T23:14:09 | F55: TLM mode change (MODE_5) | G55: TLM_MODE_5 | H55: =VLOOKUP(G55,List!B:C,2,0) -> 42 | K55: =VLOOKUP(G55,List!B:E,4,0) -> dcsm-EF_BUS_TLM_MODE_5 | L55: =VLOOKUP(G55,List!B:G,6,0) -> 2 | M55: 2022-03-21T23:08:10 | N55: 0000 CALL dcsm-EF_BUS_TLM_MODE_5 -Run
C56: 2022-03-21T23:14:09 | D56: =C57 -> 2022-03-23T01:44:11 | E56: Observation F | H56: =(D56-C56)*3600*24 -> 95402 | I56: =H56/3600 -> 26.50055556 | L56: 0 | M56: 2022-03-21T23:08:52 | N56: ="0000 WAIT_SEC "&TEXT(H56,"#0") -> 0000 WAIT_SEC 95402
C57: =D57-H57/3600/24 -> 2022-03-23T01:44:11 | D57: =C58 -> 2022-03-23T01:44:53 | F57: TLM mode change (MODE_10) | G57: TLM_MODE_10 | H57: =VLOOKUP(G57,List!B:C,2,0) -> 42 | K57: =VLOOKUP(G57,List!B:E,4,0) -> dcsm-EF_BUS_TLM_MODE_10 | L57: =VLOOKUP(G57,List!B:G,6,0) -> 2 | M57: 2022-03-23T01:38:54 | N57: =+"0000 CALL "&K57&" -Run" -> 0000 CALL dcsm-EF_BUS_TLM_MODE_10 -Run
C58: =D58-H58/3600/24 -> 2022-03-23T01:44:53 | D58: =C59 -> 2022-03-23T01:48:03 | F58: SI HV OFF | G58: HEP_HV_OFF | H58: =VLOOKUP(G58,List!B:C,2,0) -> 190 | K58: =VLOOKUP(G58,List!B:E,4,0) -> dcsm-EF_HEPE_HV_OFF_OBS_OFF | L58: =VLOOKUP(G58,List!B:G,6,0) -> 5 | M58: 2022-03-23T01:39:36 | N58: 0000 CALL dcsm-EF_HEPE_HV_OFF_OBS_OFF -Run
C59: =D59-H59/3600/24 -> 2022-03-23T01:48:03 | D59: =C60 -> 2022-03-23T01:51:05 | G59: MEA1_HV_OFF | H59: =VLOOKUP(G59,List!B:C,2,0) -> 182 | K59: =VLOOKUP(G59,List!B:E,4,0) -> dcsm-EF_MEA1_HV_OFF | L59: =VLOOKUP(G59,List!B:G,6,0) -> 10 | M59: 2022-03-23T01:42:46 | N59: 0000 CALL dcsm-EF_MEA1_HV_OFF -Run
C60: 2022-03-23T01:51:05 | D60: =C60+H60/3600/24 -> 2022-03-23T02:11:05 | E60: WOL#6 | G60: =(C61-D59)*24*3600 -> 1800 | H60: 1200 | L60: 0 | M60: 2022-03-23T01:45:48 | N60: ="0000 WAIT_SEC "&TEXT(G60,"#0") -> 0000 WAIT_SEC 1800
C61: =D60+10/60/24 -> 2022-03-23T02:21:05 | D61: =C61+H61/3600/24 -> 2022-03-23T02:49:27 | F61: SI HV ON | G61: MEA1_HV_ON | H61: =VLOOKUP(G61,List!B:C,2,0) -> 1702 | K61: =VLOOKUP(G61,List!B:E,4,0) -> dcsm-EF_MEA1_HV_ON | L61: =VLOOKUP(G61,List!B:G,6,0) -> 27 | M61: 2022-03-23T02:15:48 | N61: =+"0000 CALL "&K61&" -Run" -> 0000 CALL dcsm-EF_MEA1_HV_ON -Run
C62: =D61 -> 2022-03-23T02:49:27 | D62: 2022-03-23T02:53:57 | G62: HEP_HV_ON | H62: =VLOOKUP(G62,List!B:C,2,0) -> 270 | K62: =VLOOKUP(G62,List!B:E,4,0) -> dcsm-EF_HEPE_HV_ON_OBS_START | L62: =VLOOKUP(G62,List!B:G,6,0) -> 6 | M62: 2022-03-23T02:44:10 | N62: =+"0000 CALL "&K62&" -Run" -> 0000 CALL dcsm-EF_HEPE_HV_ON_OBS_START -Run
C63: 2022-03-23T02:53:57 | D63: 2022-03-23T02:54:39 | F63: TLM mode change (MODE_5) | G63: TLM_MODE_5 | H63: =VLOOKUP(G63,List!B:C,2,0) -> 42 | K63: =VLOOKUP(G63,List!B:E,4,0) -> dcsm-EF_BUS_TLM_MODE_5 | L63: =VLOOKUP(G63,List!B:G,6,0) -> 2 | M63: 2022-03-23T02:48:40 | N63: 0000 CALL dcsm-EF_BUS_TLM_MODE_5 -Run
C64: 2022-03-23T02:54:39 | D64: =C65 -> 2022-03-24T10:29:42 | E64: Observation G | H64: =(D64-C64)*3600*24 -> 113703 | I64: =H64/3600 -> 31.58416667 | L64: 0 | M64: 2022-03-23T02:49:22 | N64: ="0000 WAIT_SEC "&TEXT(H64,"#0") -> 0000 WAIT_SEC 113703
C65: =D65-H65/3600/24 -> 2022-03-24T10:29:42 | D65: =C66 -> 2022-03-24T10:30:24 | F65: TLM mode change (MODE_10) | G65: TLM_MODE_10 | H65: =VLOOKUP(G65,List!B:C,2,0) -> 42 | K65: =VLOOKUP(G65,List!B:E,4,0) -> dcsm-EF_BUS_TLM_MODE_10 | L65: =VLOOKUP(G65,List!B:G,6,0) -> 2 | M65: 2022-03-24T10:24:25 | N65: =+"0000 CALL "&K65&" -Run" -> 0000 CALL dcsm-EF_BUS_TLM_MODE_10 -Run
C66: =D66-H66/3600/24 -> 2022-03-24T10:30:24 | D66: =C67 -> 2022-03-24T10:33:34 | F66: SI HV OFF | G66: HEP_HV_OFF | H66: =VLOOKUP(G66,List!B:C,2,0) -> 190 | K66: =VLOOKUP(G66,List!B:E,4,0) -> dcsm-EF_HEPE_HV_OFF_OBS_OFF | L66: =VLOOKUP(G66,List!B:G,6,0) -> 5 | M66: 2022-03-24T10:25:07 | N66: 0000 CALL dcsm-EF_HEPE_HV_OFF_OBS_OFF -Run
C67: =D67-H67/3600/24 -> 2022-03-24T10:33:34 | D67: =C68 -> 2022-03-24T10:36:36 | G67: MEA1_HV_OFF | H67: =VLOOKUP(G67,List!B:C,2,0) -> 182 | K67: =VLOOKUP(G67,List!B:E,4,0) -> dcsm-EF_MEA1_HV_OFF | L67: =VLOOKUP(G67,List!B:G,6,0) -> 10 | M67: 2022-03-24T10:28:17 | N67: 0000 CALL dcsm-EF_MEA1_HV_OFF -Run
C68: 2022-03-24T10:36:36 | D68: =C68+H68/3600/24 -> 2022-03-24T10:56:36 | E68: WOL#7 | G68: =(C69-D67)*24*3600 -> 1800 | H68: 1200 | L68: 0 | M68: 2022-03-24T10:31:19 | N68: ="0000 WAIT_SEC "&TEXT(G68,"#0") -> 0000 WAIT_SEC 1800
C69: =D68+10/60/24 -> 2022-03-24T11:06:36 | D69: =C69+H69/3600/24 -> 2022-03-24T11:34:58 | F69: SI HV ON | G69: MEA1_HV_ON | H69: =VLOOKUP(G69,List!B:C,2,0) -> 1702 | K69: =VLOOKUP(G69,List!B:E,4,0) -> dcsm-EF_MEA1_HV_ON | L69: =VLOOKUP(G69,List!B:G,6,0) -> 27 | M69: 2022-03-24T11:01:19 | N69: =+"0000 CALL "&K69&" -Run" -> 0000 CALL dcsm-EF_MEA1_HV_ON -Run
C70: =D69 -> 2022-03-24T11:34:58 | D70: 2022-03-24T11:39:28 | G70: HEP_HV_ON | H70: =VLOOKUP(G70,List!B:C,2,0) -> 270 | K70: =VLOOKUP(G70,List!B:E,4,0) -> dcsm-EF_HEPE_HV_ON_OBS_START | L70: =VLOOKUP(G70,List!B:G,6,0) -> 6 | M70: =C70-317/3600/24 -> 2022-03-24T11:29:41 | N70: =+"0000 CALL "&K70&" -Run" -> 0000 CALL dcsm-EF_HEPE_HV_ON_OBS_START -Run
C71: 2022-03-24T11:39:28 | D71: 2022-03-24T11:40:10 | F71: TLM mode change (MODE_5) | G71: TLM_MODE_5 | H71: =VLOOKUP(G71,List!B:C,2,0) -> 42 | K71: =VLOOKUP(G71,List!B:E,4,0) -> dcsm-EF_BUS_TLM_MODE_5 | L71: =VLOOKUP(G71,List!B:G,6,0) -> 2 | M71: 2022-03-24T11:34:11 | N71: 0000 CALL dcsm-EF_BUS_TLM_MODE_5 -Run
C72: 2022-03-24T11:40:10 | D72: =C73 -> 2022-03-25T23:00:00 | E72: Observation H | H72: =(D72-C72)*3600*24 -> 127190 | I72: =H72/3600 -> 35.33055556 | L72: 0 | M72: 2022-03-24T11:34:53 | N72: ="0000 WAIT_SEC "&TEXT(H72,"#0") -> 0000 WAIT_SEC 127190
C73: =D73-H73/3600/24 -> 2022-03-25T23:00:00 | D73: =C74 -> 2022-03-25T23:00:42 | F73: TLM mode change (MODE_10) | G73: TLM_MODE_10 | H73: =VLOOKUP(G73,List!B:C,2,0) -> 42 | K73: =VLOOKUP(G73,List!B:E,4,0) -> dcsm-EF_BUS_TLM_MODE_10 | L73: =VLOOKUP(G73,List!B:G,6,0) -> 2 | M73: 2022-03-25T22:54:43 | N73: =+"0000 CALL "&K73&" -Run" -> 0000 CALL dcsm-EF_BUS_TLM_MODE_10 -Run
C74: =D74-H74/3600/24 -> 2022-03-25T23:00:42 | D74: =C75 -> 2022-03-25T23:03:52 | F74: SI HV OFF | G74: HEP_HV_OFF | H74: =VLOOKUP(G74,List!B:C,2,0) -> 190 | K74: =VLOOKUP(G74,List!B:E,4,0) -> dcsm-EF_HEPE_HV_OFF_OBS_OFF | L74: =VLOOKUP(G74,List!B:G,6,0) -> 5 | M74: 2022-03-25T22:55:25 | N74: 0000 CALL dcsm-EF_HEPE_HV_OFF_OBS_OFF -Run
C75: =D75-H75/3600/24 -> 2022-03-25T23:03:52 | D75: =C76 -> 2022-03-25T23:06:54 | G75: MEA1_HV_OFF | H75: =VLOOKUP(G75,List!B:C,2,0) -> 182 | K75: =VLOOKUP(G75,List!B:E,4,0) -> dcsm-EF_MEA1_HV_OFF | L75: =VLOOKUP(G75,List!B:G,6,0) -> 10 | M75: 2022-03-25T22:58:35 | N75: 0000 CALL dcsm-EF_MEA1_HV_OFF -Run
C76: 2022-03-25T23:06:54 | D76: =C76+H76/3600/24 -> 2022-03-25T23:26:54 | E76: WOL#8 | G76: =(C77-D75)*24*3600 -> 1800 | H76: 1200 | L76: 0 | M76: 2022-03-25T23:01:37 | N76: ="0000 WAIT_SEC "&TEXT(G76,"#0") -> 0000 WAIT_SEC 1800
C77: =D76+10/60/24 -> 2022-03-25T23:36:54 | D77: =C77+H77/3600/24 -> 2022-03-26T00:05:16 | F77: SI HV ON | G77: MEA1_HV_ON | H77: =VLOOKUP(G77,List!B:C,2,0) -> 1702 | K77: =VLOOKUP(G77,List!B:E,4,0) -> dcsm-EF_MEA1_HV_ON | L77: =VLOOKUP(G77,List!B:G,6,0) -> 27 | M77: 2022-03-25T23:31:37 | N77: =+"0000 CALL "&K77&" -Run" -> 0000 CALL dcsm-EF_MEA1_HV_ON -Run
C78: =D77 -> 2022-03-26T00:05:16 | D78: 2022-03-26T00:09:46 | G78: HEP_HV_ON | H78: =VLOOKUP(G78,List!B:C,2,0) -> 270 | K78: =VLOOKUP(G78,List!B:E,4,0) -> dcsm-EF_HEPE_HV_ON_OBS_START | L78: =VLOOKUP(G78,List!B:G,6,0) -> 6 | M78: 2022-03-25T23:59:59 | N78: =+"0000 CALL "&K78&" -Run" -> 0000 CALL dcsm-EF_HEPE_HV_ON_OBS_START -Run
C79: 2022-03-26T00:09:46 | D79: 2022-03-26T00:10:28 | F79: TLM mode change (MODE_5) | G79: TLM_MODE_5 | H79: =VLOOKUP(G79,List!B:C,2,0) -> 42 | K79: =VLOOKUP(G79,List!B:E,4,0) -> dcsm-EF_BUS_TLM_MODE_5 | L79: =VLOOKUP(G79,List!B:G,6,0) -> 2 | M79: 2022-03-26T00:04:29 | N79: 0000 CALL dcsm-EF_BUS_TLM_MODE_5 -Run
C80: 2022-03-26T00:10:28 | D80: =C81 -> 2022-03-26T23:08:24 | E80: Observation I | H80: =(D80-C80)*3600*24 -> 82676 | I80: =H80/3600 -> 22.96555556 | L80: 0 | M80: 2022-03-26T00:05:11 | N80: ="0000 WAIT_SEC "&TEXT(H80,"#0") -> 0000 WAIT_SEC 82676
C81: =D81-H81/3600/24 -> 2022-03-26T23:08:24 | D81: =C82 -> 2022-03-26T23:09:06 | F81: TLM mode change (MODE_10) | G81: TLM_MODE_10 | H81: =VLOOKUP(G81,List!B:C,2,0) -> 42 | K81: =VLOOKUP(G81,List!B:E,4,0) -> dcsm-EF_BUS_TLM_MODE_10 | L81: =VLOOKUP(G81,List!B:G,6,0) -> 2 | M81: 2022-03-26T23:03:07 | N81: =+"0000 CALL "&K81&" -Run" -> 0000 CALL dcsm-EF_BUS_TLM_MODE_10 -Run
C82: =D82-H82/3600/24 -> 2022-03-26T23:09:06 | D82: =C83 -> 2022-03-26T23:12:16 | F82: SI HV OFF | G82: HEP_HV_OFF | H82: =VLOOKUP(G82,List!B:C,2,0) -> 190 | K82: =VLOOKUP(G82,List!B:E,4,0) -> dcsm-EF_HEPE_HV_OFF_OBS_OFF | L82: =VLOOKUP(G82,List!B:G,6,0) -> 5 | M82: 2022-03-26T23:03:49 | N82: 0000 CALL dcsm-EF_HEPE_HV_OFF_OBS_OFF -Run
C83: =D83-H83/3600/24 -> 2022-03-26T23:12:16 | D83: =C84 -> 2022-03-26T23:15:22 | G83: MEA1_HV_SCAN_OFF | H83: =VLOOKUP(G83,List!B:C,2,0) -> 186 | K83: =VLOOKUP(G83,List!B:E,4,0) -> dcsm-EF_MEA1_HV_SCAN_OFF | L83: =VLOOKUP(G83,List!B:G,6,0) -> 12 | M83: 2022-03-26T23:06:59 | N83: 0000 CALL dcsm-EF_MEA1_HV_SCAN_OFF -Run
C84: =D84-H84/3600/24 -> 2022-03-26T23:15:22 | D84: =C85 -> 2022-03-26T23:16:32 | F84: SI OFF | G84: HEP_OFF | H84: =VLOOKUP(G84,List!B:C,2,0) -> 70 | K84: =VLOOKUP(G84,List!B:E,4,0) -> dcsm-EF_HEPE_OFF_STOP | L84: =VLOOKUP(G84,List!B:G,6,0) -> 4 | M84: 2022-03-26T23:10:05 | N84: =+"0000 CALL "&K84&" -Run" -> 0000 CALL dcsm-EF_HEPE_OFF_STOP -Run
C85: 2022-03-26T23:16:32 | D85: 2022-03-26T23:19:12 | G85: MEA1_OFF | H85: =VLOOKUP(G85,List!B:C,2,0) -> 160 | K85: =VLOOKUP(G85,List!B:E,4,0) -> dcsm-EF_MEA1_OFF | L85: =VLOOKUP(G85,List!B:G,6,0) -> 4 | M85: 2022-03-26T23:11:15 | N85: =+"0000 CALL "&K85&" -Run" -> 0000 CALL dcsm-EF_MEA1_OFF -Run
C86: 2022-03-26T23:19:12 | D86: 2022-03-26T23:19:20 | G86: MGF_OFF | H86: =VLOOKUP(G86,List!B:C,2,0) -> 8 | K86: =VLOOKUP(G86,List!B:E,4,0) -> dcsm-EF_MGF_OFF | L86: =VLOOKUP(G86,List!B:G,6,0) -> 1 | M86: 2022-03-26T23:13:55 | N86: 0000 CALL dcsm-EF_MGF_OFF -Run
C87: 2022-03-26T23:19:20 | D87: =C88 -> 2022-03-26T23:20:00 | G87: PME_OFF | H87: =VLOOKUP(G87,List!B:C,2,0) -> 40 | K87: =VLOOKUP(G87,List!B:E,4,0) -> dcsm-EF_PME_OFF | L87: =VLOOKUP(G87,List!B:G,6,0) -> 1 | M87: 2022-03-26T23:14:03 | N87: 0000 CALL dcsm-EF_PME_OFF -Run
C88: 2022-03-26T23:20:00 | D88: =C89 -> 2022-03-27 | H88: =(D88-C88)*3600*24 -> 2400 | L88: 0 | M88: 2022-03-26T23:14:43 | N88: ="0000 WAIT_SEC "&TEXT(H88,"#0") -> 0000 WAIT_SEC 2400
C89: 2022-03-27 | D89: =C89+H89/3600/24 -> 2022-03-27T00:04:52 | F89: SI ON | G89: MEA1_ON_SETUP_SW | H89: =VLOOKUP(G89,List!B:C,2,0) -> 292 | K89: =VLOOKUP(G89,List!B:E,4,0) -> dcsm-EF_MEA1_ON_SW | L89: 12 | M89: 2022-03-26T23:54:43 | N89: =+"0000 CALL "&K89&" -Run" -> 0000 CALL dcsm-EF_MEA1_ON_SW -Run
C90: =D89 -> 2022-03-27T00:04:52 | D90: 2022-03-27T00:14:34 | G90: MIA_ON_ASIC_LDET | H90: =VLOOKUP(G90,List!B:C,2,0) -> 582 | K90: =VLOOKUP(G90,List!B:E,4,0) -> dcsm-EF_MIA_ON_ASIC_LDET | L90: 11 | M90: 2022-03-26T23:59:35 | N90: 0000 CALL dcsm-EF_MIA_ON_ASIC_LDET -Run
C91: =D90 -> 2022-03-27T00:14:34 | D91: 2022-03-27T00:32:46 | G91: MSA_ON_SETUP_C | H91: =VLOOKUP(G91,List!B:C,2,0) -> 1092 | K91: =VLOOKUP(G91,List!B:E,4,0) -> dcsm-EF_MSA_ON_C | L91: 15 | M91: 2022-03-27T00:09:17 | N91: 0000 CALL dcsm-EF_MSA_ON_C -Run
C92: =D91 -> 2022-03-27T00:32:46 | D92: 2022-03-27T00:37:08 | F92: SI HV ON | G92: MIA_HV_ON_SW_RC | H92: =VLOOKUP(G92,List!B:C,2,0) -> 262 | K92: =VLOOKUP(G92,List!B:E,4,0) -> dcsm-EF_MIA_HV_ON_SW_RC | L92: 7 | M92: =C92-317/3600/24 -> 2022-03-27T00:27:29 | N92: =+"0000 CALL "&K92&" -Run" -> 0000 CALL dcsm-EF_MIA_HV_ON_SW_RC -Run
C93: 2022-03-27T00:37:08 | D93: 2022-03-27T01:05:30 | G93: MEA1_HV_ON | H93: =VLOOKUP(G93,List!B:C,2,0) -> 1702 | K93: =VLOOKUP(G93,List!B:E,4,0) -> dcsm-EF_MEA1_HV_ON | L93: 27 | M93: =C93-317/3600/24 -> 2022-03-27T00:31:51 | N93: =+"0000 CALL "&K93&" -Run" -> 0000 CALL dcsm-EF_MEA1_HV_ON -Run
C94: 2022-03-27T01:05:30 | D94: 2022-03-27T01:31:43 | G94: MSA_HV_ON_1_MFB_SF | H94: =VLOOKUP(G94,List!B:C,2,0) -> 1573 | K94: =VLOOKUP(G94,List!B:E,4,0) -> dcsm-EF_MSA_HV_ON_1_MFB_Safe | L94: 108 | M94: =C94-317/3600/24 -> 2022-03-27T01:00:13 | N94: =+"0000 CALL "&K94&" -Run" -> 0000 CALL dcsm-EF_MSA_HV_ON_1_MFB_Safe -Run
C95: 2022-03-27T01:31:43 | D95: 2022-03-27T02:02:43 | G95: MSA_HV_ON_2_MFB_SF | H95: =VLOOKUP(G95,List!B:C,2,0) -> 1860 | K95: =VLOOKUP(G95,List!B:E,4,0) -> dcsm-EF_MSA_HV_ON_2_MFB_Safe | L95: 124 | M95: 2022-03-27T01:26:26 | N95: 0000 CALL dcsm-EF_MSA_HV_ON_2_MFB_Safe -Run
C96: 2022-03-27T02:02:43 | D96: 2022-03-27T02:03:25 | F96: TLM mode change (MODE_5) | G96: TLM_MODE_5 | H96: =VLOOKUP(G96,List!B:C,2,0) -> 42 | K96: =VLOOKUP(G96,List!B:E,4,0) -> dcsm-EF_BUS_TLM_MODE_5 | L96: 2 | M96: 2022-03-27T01:57:26 | N96: 0000 CALL dcsm-EF_BUS_TLM_MODE_5 -Run
C97: =D96 -> 2022-03-27T02:03:25 | D97: =C98 -> 2022-03-27T19:28:36 | E97: Observation J | H97: =(D97-C97)*3600*24 -> 62711 | I97: =H97/3600 -> 17.41972222 | L97: 0 | M97: 2022-03-27T01:58:08 | N97: ="0000 WAIT_SEC "&TEXT(H97,"#0") -> 0000 WAIT_SEC 62711
C98: =D98-H98/3600/24 -> 2022-03-27T19:28:36 | D98: =C99 -> 2022-03-27T19:29:18 | F98: TLM mode change (MODE_10) | G98: TLM_MODE_10 | H98: =VLOOKUP(G98,List!B:C,2,0) -> 42 | K98: =VLOOKUP(G98,List!B:E,4,0) -> dcsm-EF_BUS_TLM_MODE_10 | L98: 2 | M98: 2022-03-27T19:23:19 | N98: =+"0000 CALL "&K98&" -Run" -> 0000 CALL dcsm-EF_BUS_TLM_MODE_10 -Run
C99: =D99-H99/3600/24 -> 2022-03-27T19:29:18 | D99: =C100 -> 2022-03-27T19:42:12 | F99: SI HV OFF | G99: MSA_HV_OFF_VFB | H99: =VLOOKUP(G99,List!B:C,2,0) -> 774 | K99: =VLOOKUP(G99,List!B:E,4,0) -> dcsm-EF_MSA_HV_OFF_VFB | L99: 25 | M99: 2022-03-27T19:24:01 | N99: 0000 CALL dcsm-EF_MSA_HV_OFF_VFB -Run
C100: 2022-03-27T19:42:12 | D100: 2022-03-27T19:45:14 | G100: MEA1_HV_OFF | H100: =VLOOKUP(G100,List!B:C,2,0) -> 182 | K100: =VLOOKUP(G100,List!B:E,4,0) -> dcsm-EF_MEA1_HV_OFF | L100: 10 | M100: 2022-03-27T19:36:55 | N100: 0000 CALL dcsm-EF_MEA1_HV_OFF -Run
C101: 2022-03-27T19:45:14 | D101: 2022-03-27T19:46:14 | G101: MIA_HV_OFF | H101: =VLOOKUP(G101,List!B:C,2,0) -> 60 | K101: =VLOOKUP(G101,List!B:E,4,0) -> dcsm-EF_MIA_HV_OFF | L101: 1 | M101: 2022-03-27T19:39:57 | N101: 0000 CALL dcsm-EF_MIA_HV_OFF -Run
C102: 2022-03-27T19:46:14 | D102: =C102+H102/3600/24 -> 2022-03-27T20:06:14 | E102: WOL#9 | G102: =(C103-D101)*24*3600 -> 1800 | H102: 1200 | L102: 0 | M102: 2022-03-27T19:40:57 | N102: ="0000 WAIT_SEC "&TEXT(G102,"#0") -> 0000 WAIT_SEC 1800
C103: =D102+10/60/24 -> 2022-03-27T20:16:14 | D103: =C103+H103/3600/24 -> 2022-03-27T20:20:36 | F103: SI HV ON | G103: MIA_HV_ON_SW_RC | H103: =VLOOKUP(G103,List!B:C,2,0) -> 262 | K103: =VLOOKUP(G103,List!B:E,4,0) -> dcsm-EF_MIA_HV_ON_SW_RC | L103: 7 | M103: =C103-317/3600/24 -> 2022-03-27T20:10:57 | N103: =+"0000 CALL "&K103&" -Run" -> 0000 CALL dcsm-EF_MIA_HV_ON_SW_RC -Run
C104: =D103 -> 2022-03-27T20:20:36 | D104: 2022-03-27T20:48:58 | G104: MEA1_HV_ON | H104: =VLOOKUP(G104,List!B:C,2,0) -> 1702 | K104: =VLOOKUP(G104,List!B:E,4,0) -> dcsm-EF_MEA1_HV_ON | L104: 27 | M104: =C104-317/3600/24 -> 2022-03-27T20:15:19 | N104: =+"0000 CALL "&K104&" -Run" -> 0000 CALL dcsm-EF_MEA1_HV_ON -Run
C105: =D104 -> 2022-03-27T20:48:58 | D105: 2022-03-27T21:15:11 | G105: MSA_HV_ON_1_MFB_SF | H105: =VLOOKUP(G105,List!B:C,2,0) -> 1573 | K105: =VLOOKUP(G105,List!B:E,4,0) -> dcsm-EF_MSA_HV_ON_1_MFB_Safe | L105: 108 | M105: =C105-317/3600/24 -> 2022-03-27T20:43:41 | N105: =+"0000 CALL "&K105&" -Run" -> 0000 CALL dcsm-EF_MSA_HV_ON_1_MFB_Safe -Run
C106: 2022-03-27T21:15:11 | D106: 2022-03-27T21:46:11 | G106: MSA_HV_ON_2_MFB_SF | H106: =VLOOKUP(G106,List!B:C,2,0) -> 1860 | K106: =VLOOKUP(G106,List!B:E,4,0) -> dcsm-EF_MSA_HV_ON_2_MFB_Safe | L106: 124 | M106: 2022-03-27T21:09:54 | N106: 0000 CALL dcsm-EF_MSA_HV_ON_2_MFB_Safe -Run
C107: =D106 -> 2022-03-27T21:46:11 | D107: 2022-03-27T21:46:53 | F107: TLM mode change (MODE_5) | G107: TLM_MODE_5 | H107: =VLOOKUP(G107,List!B:C,2,0) -> 42 | K107: =VLOOKUP(G107,List!B:E,4,0) -> dcsm-EF_BUS_TLM_MODE_5 | L107: 2 | M107: 2022-03-27T21:40:54 | N107: 0000 CALL dcsm-EF_BUS_TLM_MODE_5 -Run
C108: =D107 -> 2022-03-27T21:46:53 | D108: =C109 -> 2022-03-28T20:22:31 | E108: Observation K | H108: =(D108-C108)*3600*24 -> 81338 | I108: =H108/3600 -> 22.59388889 | L108: 0 | M108: 2022-03-27T21:41:36 | N108: ="0000 WAIT_SEC "&TEXT(H108,"#0") -> 0000 WAIT_SEC 81338
C109: =D109-H109/3600/24 -> 2022-03-28T20:22:31 | D109: =C110 -> 2022-03-28T20:23:13 | F109: TLM mode change (MODE_10) | G109: TLM_MODE_10 | H109: =VLOOKUP(G109,List!B:C,2,0) -> 42 | K109: =VLOOKUP(G109,List!B:E,4,0) -> dcsm-EF_BUS_TLM_MODE_10 | L109: 2 | M109: 2022-03-28T20:17:14 | N109: =+"0000 CALL "&K109&" -Run" -> 0000 CALL dcsm-EF_BUS_TLM_MODE_10 -Run
C110: =D110-H110/3600/24 -> 2022-03-28T20:23:13 | D110: =C111 -> 2022-03-28T20:36:07 | F110: SI HV OFF | G110: MSA_HV_OFF_VFB | H110: =VLOOKUP(G110,List!B:C,2,0) -> 774 | K110: =VLOOKUP(G110,List!B:E,4,0) -> dcsm-EF_MSA_HV_OFF_VFB | L110: 25 | M110: 2022-03-28T20:17:56 | N110: 0000 CALL dcsm-EF_MSA_HV_OFF_VFB -Run
C111: 2022-03-28T20:36:07 | D111: 2022-03-28T20:39:09 | G111: MEA1_HV_OFF | H111: =VLOOKUP(G111,List!B:C,2,0) -> 182 | K111: =VLOOKUP(G111,List!B:E,4,0) -> dcsm-EF_MEA1_HV_OFF | L111: 10 | M111: 2022-03-28T20:30:50 | N111: 0000 CALL dcsm-EF_MEA1_HV_OFF -Run
C112: 2022-03-28T20:39:09 | D112: 2022-03-28T20:40:09 | G112: MIA_HV_OFF | H112: =VLOOKUP(G112,List!B:C,2,0) -> 60 | K112: =VLOOKUP(G112,List!B:E,4,0) -> dcsm-EF_MIA_HV_OFF | L112: 1 | M112: 2022-03-28T20:33:52 | N112: 0000 CALL dcsm-EF_MIA_HV_OFF -Run
C113: 2022-03-28T20:40:09 | D113: =C113+H113/3600/24 -> 2022-03-28T21:00:09 | E113: WOL#10 | G113: =(C114-D112)*24*3600 -> 1800 | H113: 1200 | L113: 0 | M113: 2022-03-28T20:34:52 | N113: ="0000 WAIT_SEC "&TEXT(G113,"#0") -> 0000 WAIT_SEC 1800
C114: =D113+10/60/24 -> 2022-03-28T21:10:09 | D114: =C114+H114/3600/24 -> 2022-03-28T21:14:31 | F114: SI HV ON | G114: MIA_HV_ON_SW_RC | H114: =VLOOKUP(G114,List!B:C,2,0) -> 262 | K114: =VLOOKUP(G114,List!B:E,4,0) -> dcsm-EF_MIA_HV_ON_SW_RC | L114: 7 | M114: =C114-317/3600/24 -> 2022-03-28T21:04:52 | N114: =+"0000 CALL "&K114&" -Run" -> 0000 CALL dcsm-EF_MIA_HV_ON_SW_RC -Run
C115: =D114 -> 2022-03-28T21:14:31 | D115: 2022-03-28T21:42:53 | G115: MEA1_HV_ON | H115: =VLOOKUP(G115,List!B:C,2,0) -> 1702 | K115: =VLOOKUP(G115,List!B:E,4,0) -> dcsm-EF_MEA1_HV_ON | L115: 27 | M115: =C115-317/3600/24 -> 2022-03-28T21:09:14 | N115: =+"0000 CALL "&K115&" -Run" -> 0000 CALL dcsm-EF_MEA1_HV_ON -Run
C116: =D115 -> 2022-03-28T21:42:53 | D116: 2022-03-28T22:09:06 | G116: MSA_HV_ON_1_MFB_SF | H116: =VLOOKUP(G116,List!B:C,2,0) -> 1573 | K116: =VLOOKUP(G116,List!B:E,4,0) -> dcsm-EF_MSA_HV_ON_1_MFB_Safe | L116: 108 | M116: =C116-317/3600/24 -> 2022-03-28T21:37:36 | N116: =+"0000 CALL "&K116&" -Run" -> 0000 CALL dcsm-EF_MSA_HV_ON_1_MFB_Safe -Run
C117: 2022-03-28T22:09:06 | D117: 2022-03-28T22:40:06 | G117: MSA_HV_ON_2_MFB_SF | H117: =VLOOKUP(G117,List!B:C,2,0) -> 1860 | K117: =VLOOKUP(G117,List!B:E,4,0) -> dcsm-EF_MSA_HV_ON_2_MFB_Safe | L117: 124 | M117: 2022-03-28T22:03:49 | N117: 0000 CALL dcsm-EF_MSA_HV_ON_2_MFB_Safe -Run
C118: =D117 -> 2022-03-28T22:40:06 | D118: 2022-03-28T22:40:48 | F118: TLM mode change (MODE_5) | G118: TLM_MODE_5 | H118: =VLOOKUP(G118,List!B:C,2,0) -> 42 | K118: =VLOOKUP(G118,List!B:E,4,0) -> dcsm-EF_BUS_TLM_MODE_5 | L118: 2 | M118: 2022-03-28T22:34:49 | N118: 0000 CALL dcsm-EF_BUS_TLM_MODE_5 -Run
C119: =D118 -> 2022-03-28T22:40:48 | D119: =C120 -> 2022-03-29T23:30:38 | E119: Observation L | H119: =(D119-C119)*3600*24 -> 89390 | I119: =H119/3600 -> 24.83055556 | L119: 0 | M119: 2022-03-28T22:35:31 | N119: ="0000 WAIT_SEC "&TEXT(H119,"#0") -> 0000 WAIT_SEC 89390
C120: =D120-H120/3600/24 -> 2022-03-29T23:30:38 | D120: =C121 -> 2022-03-29T23:31:20 | F120: TLM mode change (MODE_10) | G120: TLM_MODE_10 | H120: =VLOOKUP(G120,List!B:C,2,0) -> 42 | K120: =VLOOKUP(G120,List!B:E,4,0) -> dcsm-EF_BUS_TLM_MODE_10 | L120: 2 | M120: 2022-03-29T23:25:21 | N120: =+"0000 CALL "&K120&" -Run" -> 0000 CALL dcsm-EF_BUS_TLM_MODE_10 -Run
C121: =D121-H121/3600/24 -> 2022-03-29T23:31:20 | D121: =C122 -> 2022-03-29T23:44:14 | F121: SI HV OFF | G121: MSA_HV_OFF_VFB | H121: =VLOOKUP(G121,List!B:C,2,0) -> 774 | K121: =VLOOKUP(G121,List!B:E,4,0) -> dcsm-EF_MSA_HV_OFF_VFB | L121: 25 | M121: 2022-03-29T23:26:03 | N121: 0000 CALL dcsm-EF_MSA_HV_OFF_VFB -Run
C122: 2022-03-29T23:44:14 | D122: 2022-03-29T23:47:20 | G122: MEA1_HV_SCAN_OFF | H122: =VLOOKUP(G122,List!B:C,2,0) -> 186 | K122: =VLOOKUP(G122,List!B:E,4,0) -> dcsm-EF_MEA1_HV_SCAN_OFF | L122: 12 | M122: 2022-03-29T23:38:57 | N122: 0000 CALL dcsm-EF_MEA1_HV_SCAN_OFF -Run
C123: 2022-03-29T23:47:20 | D123: 2022-03-29T23:48:20 | G123: MIA_HV_OFF | H123: =VLOOKUP(G123,List!B:C,2,0) -> 60 | K123: =VLOOKUP(G123,List!B:E,4,0) -> dcsm-EF_MIA_HV_OFF | L123: 1 | M123: 2022-03-29T23:42:03 | N123: 0000 CALL dcsm-EF_MIA_HV_OFF -Run
C124: 2022-03-29T23:48:20 | D124: 2022-03-29T23:54:40 | F124: SI OFF | G124: MSA_OFF | H124: =VLOOKUP(G124,List!B:C,2,0) -> 380 | K124: =VLOOKUP(G124,List!B:E,4,0) -> dcsm-EF_MSA_OFF | L124: 25 | M124: 2022-03-29T23:43:03 | N124: 0000 CALL dcsm-EF_MSA_OFF -Run
C125: 2022-03-29T23:54:40 | D125: 2022-03-29T23:57:20 | G125: MIA_OFF | H125: =VLOOKUP(G125,List!B:C,2,0) -> 160 | K125: =VLOOKUP(G125,List!B:E,4,0) -> dcsm-EF_MIA_OFF | L125: 4 | M125: 2022-03-29T23:49:23 | N125: 0000 CALL dcsm-EF_MIA_OFF -Run
C126: 2022-03-29T23:57:20 | D126: 2022-03-30 | G126: MEA1_OFF | H126: =VLOOKUP(G126,List!B:C,2,0) -> 160 | K126: =VLOOKUP(G126,List!B:E,4,0) -> dcsm-EF_MEA1_OFF | L126: 4 | M126: 2022-03-29T23:52:03 | N126: 0000 CALL dcsm-EF_MEA1_OFF -Run
C127: 2022-03-30 | D127: =C127+H127/3600/24 -> 2022-03-30T00:04:52 | F127: SI ON | G127: MEA1_ON_SETUP_SW | H127: =VLOOKUP(G127,List!B:C,2,0) -> 292 | K127: dcsm-EF_MEA1_ON_SW | L127: 12 | M127: 2022-03-29T23:54:43 | N127: 0000 CALL dcsm-EF_MEA1_ON_SW -Run
C128: =D127 -> 2022-03-30T00:04:52 | D128: =C128+H128/3600/24 -> 2022-03-30T00:25:22 | G128: HEP_ON_SETUP | H128: =VLOOKUP(G128,List!B:C,2,0) -> 1230 | K128: dcsm-EF_HEP_ON_START_for_TL | L128: 34 | M128: 2022-03-29T23:59:35 | N128: 0000 CALL dcsm-EF_HEP_ON_START_for_TL -Run
C129: =D128 -> 2022-03-30T00:25:22 | D129: =C129+H129/3600/24 -> 2022-03-30T00:26:42 | G129: PME_ON | H129: =VLOOKUP(G129,List!B:C,2,0) -> 80 | K129: dcsm-EF_PME_ON | L129: 2 | M129: 2022-03-30T00:20:05 | N129: 0000 CALL dcsm-EF_PME_ON -Run
C130: 2022-03-30T00:26:42 | D130: 2022-03-30T00:26:56 | G130: MGF_ON_SETUP | H130: =VLOOKUP(G130,List!B:C,2,0) -> 14 | K130: dcsm-EF_MGF_ON | L130: 3 | M130: 2022-03-30T00:21:25 | N130: 0000 CALL dcsm-EF_MGF_ON -Run
C131: =D130 -> 2022-03-30T00:26:56 | D131: 2022-03-30T00:55:18 | F131: SI HV ON | G131: MEA1_HV_ON | H131: =VLOOKUP(G131,List!B:C,2,0) -> 1702 | K131: dcsm-EF_MEA1_HV_ON | L131: 27 | M131: 2022-03-30T00:21:39 | N131: =+"0000 CALL "&K131&" -Run" -> 0000 CALL dcsm-EF_MEA1_HV_ON -Run
C132: =D131 -> 2022-03-30T00:55:18 | D132: 2022-03-30T00:59:48 | G132: HEP_HV_ON | H132: =VLOOKUP(G132,List!B:C,2,0) -> 270 | K132: dcsm-EF_HEPE_HV_ON_OBS_START | L132: 6 | M132: 2022-03-30T00:50:01 | N132: =+"0000 CALL "&K132&" -Run" -> 0000 CALL dcsm-EF_HEPE_HV_ON_OBS_START -Run
C133: 2022-03-30T00:59:48 | D133: 2022-03-30T01:00:30 | F133: TLM mode change (MODE_5) | G133: TLM_MODE_5 | H133: =VLOOKUP(G133,List!B:C,2,0) -> 42 | K133: dcsm-EF_BUS_TLM_MODE_5 | L133: 2 | M133: 2022-03-30T00:54:31 | N133: 0000 CALL dcsm-EF_BUS_TLM_MODE_5 -Run
C134: 2022-03-30T01:00:30 | D134: =C135 -> 2022-03-30T01:44:11 | E134: Observation M | H134: =(D134-C134)*3600*24 -> 2621.000001 | I134: =H134/3600 -> 0.7280555558 | L134: 0 | M134: 2022-03-30T00:55:13 | N134: ="0000 WAIT_SEC "&TEXT(H134,"#0") -> 0000 WAIT_SEC 2621
C135: =D135-H135/3600/24 -> 2022-03-30T01:44:11 | D135: =C136 -> 2022-03-30T01:44:53 | F135: TLM mode change (MODE_10) | G135: TLM_MODE_10 | H135: =VLOOKUP(G135,List!B:C,2,0) -> 42 | K135: dcsm-EF_BUS_TLM_MODE_10 | L135: 2 | M135: 2022-03-30T01:38:54 | N135: =+"0000 CALL "&K135&" -Run" -> 0000 CALL dcsm-EF_BUS_TLM_MODE_10 -Run
C136: =D136-H136/3600/24 -> 2022-03-30T01:44:53 | D136: =C137 -> 2022-03-30T01:48:03 | F136: SI HV OFF | G136: HEP_HV_OFF | H136: =VLOOKUP(G136,List!B:C,2,0) -> 190 | K136: dcsm-EF_HEPE_HV_OFF_OBS_OFF | L136: 5 | M136: 2022-03-30T01:39:36 | N136: 0000 CALL dcsm-EF_HEPE_HV_OFF_OBS_OFF -Run
C137: =D137-H137/3600/24 -> 2022-03-30T01:48:03 | D137: =C138 -> 2022-03-30T01:51:05 | G137: MEA1_HV_OFF | H137: =VLOOKUP(G137,List!B:C,2,0) -> 182 | K137: dcsm-EF_MEA1_HV_OFF | L137: 10 | M137: 2022-03-30T01:42:46 | N137: 0000 CALL dcsm-EF_MEA1_HV_OFF -Run
C138: 2022-03-30T01:51:05 | D138: =C138+H138/3600/24 -> 2022-03-30T02:11:05 | E138: WOL#11 | G138: =(C139-D137)*24*3600 -> 1800 | H138: 1200 | L138: 0 | M138: 2022-03-30T01:45:48 | N138: ="0000 WAIT_SEC "&TEXT(G138,"#0") -> 0000 WAIT_SEC 1800
C139: =D138+10/60/24 -> 2022-03-30T02:21:05 | D139: =C139+H139/3600/24 -> 2022-03-30T02:49:27 | F139: SI HV ON | G139: MEA1_HV_ON | H139: =VLOOKUP(G139,List!B:C,2,0) -> 1702 | K139: dcsm-EF_MEA1_HV_ON | L139: 27 | M139: 2022-03-30T02:15:48 | N139: =+"0000 CALL "&K139&" -Run" -> 0000 CALL dcsm-EF_MEA1_HV_ON -Run
C140: =D139 -> 2022-03-30T02:49:27 | D140: 2022-03-30T02:53:57 | G140: HEP_HV_ON | H140: =VLOOKUP(G140,List!B:C,2,0) -> 270 | K140: dcsm-EF_HEPE_HV_ON_OBS_START | L140: 6 | M140: 2022-03-30T02:44:10 | N140: =+"0000 CALL "&K140&" -Run" -> 0000 CALL dcsm-EF_HEPE_HV_ON_OBS_START -Run
C141: 2022-03-30T02:53:57 | D141: 2022-03-30T02:54:39 | F141: TLM mode change (MODE_5) | G141: TLM_MODE_5 | H141: =VLOOKUP(G141,List!B:C,2,0) -> 42 | K141: dcsm-EF_BUS_TLM_MODE_5 | L141: 2 | M141: 2022-03-30T02:48:40 | N141: 0000 CALL dcsm-EF_BUS_TLM_MODE_5 -Run
C142: 2022-03-30T02:54:39 | D142: =C143 -> 2022-03-31T10:13:00 | E142: Observation N | H142: =(D142-C142)*3600*24 -> 112701 | I142: =H142/3600 -> 31.30583333 | L142: 0 | M142: 2022-03-30T02:49:22 | N142: ="0000 WAIT_SEC "&TEXT(H142,"#0") -> 0000 WAIT_SEC 112701
C143: =D143-H143/3600/24 -> 2022-03-31T10:13:00 | D143: =C144 -> 2022-03-31T10:13:42 | F143: TLM mode change (MODE_10) | G143: TLM_MODE_10 | H143: =VLOOKUP(G143,List!B:C,2,0) -> 42 | K143: dcsm-EF_BUS_TLM_MODE_10 | L143: 2 | M143: 2022-03-31T10:07:43 | N143: =+"0000 CALL "&K143&" -Run" -> 0000 CALL dcsm-EF_BUS_TLM_MODE_10 -Run
C144: =D144-H144/3600/24 -> 2022-03-31T10:13:42 | D144: =C145 -> 2022-03-31T10:16:52 | F144: SI HV OFF | G144: HEP_HV_OFF | H144: =VLOOKUP(G144,List!B:C,2,0) -> 190 | K144: dcsm-EF_HEPE_HV_OFF_OBS_OFF | L144: 5 | M144: 2022-03-31T10:08:25 | N144: 0000 CALL dcsm-EF_HEPE_HV_OFF_OBS_OFF -Run
C145: =D145-H145/3600/24 -> 2022-03-31T10:16:52 | D145: =C146 -> 2022-03-31T10:19:54 | G145: MEA1_HV_OFF | H145: =VLOOKUP(G145,List!B:C,2,0) -> 182 | K145: dcsm-EF_MEA1_HV_OFF | L145: 10 | M145: 2022-03-31T10:11:35 | N145: 0000 CALL dcsm-EF_MEA1_HV_OFF -Run
C146: 2022-03-31T10:19:54 | D146: =C146+H146/3600/24 -> 2022-03-31T10:39:54 | E146: WOL#12 | G146: =(C147-D145)*24*3600 -> 1800 | H146: 1200 | L146: 0 | M146: 2022-03-31T10:14:37 | N146: ="0000 WAIT_SEC "&TEXT(G146,"#0") -> 0000 WAIT_SEC 1800
C147: =D146+10/60/24 -> 2022-03-31T10:49:54 | D147: =C147+H147/3600/24 -> 2022-03-31T11:18:16 | F147: SI HV ON | G147: MEA1_HV_ON | H147: =VLOOKUP(G147,List!B:C,2,0) -> 1702 | K147: dcsm-EF_MEA1_HV_ON | L147: 27 | M147: 2022-03-31T10:44:37 | N147: =+"0000 CALL "&K147&" -Run" -> 0000 CALL dcsm-EF_MEA1_HV_ON -Run
C148: =D147 -> 2022-03-31T11:18:16 | D148: 2022-03-31T11:22:46 | G148: HEP_HV_ON | H148: =VLOOKUP(G148,List!B:C,2,0) -> 270 | K148: dcsm-EF_HEPE_HV_ON_OBS_START | L148: 6 | M148: 2022-03-31T11:12:59 | N148: =+"0000 CALL "&K148&" -Run" -> 0000 CALL dcsm-EF_HEPE_HV_ON_OBS_START -Run
C149: 2022-03-31T11:22:46 | D149: 2022-03-31T11:23:28 | F149: TLM mode change (MODE_5) | G149: TLM_MODE_5 | H149: =VLOOKUP(G149,List!B:C,2,0) -> 42 | K149: dcsm-EF_BUS_TLM_MODE_5 | L149: 2 | M149: 2022-03-31T11:17:29 | N149: 0000 CALL dcsm-EF_BUS_TLM_MODE_5 -Run
C150: 2022-03-31T11:23:28 | D150: =C151 -> 2022-04-01T18:47:00 | E150: Observation O | H150: =(D150-C150)*3600*24 -> 113012 | I150: =H150/3600 -> 31.39222222 | L150: 0 | M150: 2022-03-31T11:18:11 | N150: ="0000 WAIT_SEC "&TEXT(H150,"#0") -> 0000 WAIT_SEC 113012
C151: =D151-H151/3600/24 -> 2022-04-01T18:47:00 | D151: =C152 -> 2022-04-01T18:47:42 | F151: TLM mode change (MODE_10) | G151: TLM_MODE_10 | H151: =VLOOKUP(G151,List!B:C,2,0) -> 42 | K151: dcsm-EF_BUS_TLM_MODE_10 | L151: 2 | M151: 2022-04-01T18:41:43 | N151: =+"0000 CALL "&K151&" -Run" -> 0000 CALL dcsm-EF_BUS_TLM_MODE_10 -Run
C152: =D152-H152/3600/24 -> 2022-04-01T18:47:42 | D152: =C153 -> 2022-04-01T18:50:52 | F152: SI HV OFF | G152: HEP_HV_OFF | H152: =VLOOKUP(G152,List!B:C,2,0) -> 190 | K152: dcsm-EF_HEPE_HV_OFF_OBS_OFF | L152: 5 | M152: 2022-04-01T18:42:25 | N152: 0000 CALL dcsm-EF_HEPE_HV_OFF_OBS_OFF -Run
C153: =D153-H153/3600/24 -> 2022-04-01T18:50:52 | D153: =C154 -> 2022-04-01T18:53:54 | G153: MEA1_HV_OFF | H153: =VLOOKUP(G153,List!B:C,2,0) -> 182 | K153: dcsm-EF_MEA1_HV_OFF | L153: 10 | M153: 2022-04-01T18:45:35 | N153: 0000 CALL dcsm-EF_MEA1_HV_OFF -Run
C154: 2022-04-01T18:53:54 | D154: =C154+H154/3600/24 -> 2022-04-01T19:13:54 | E154: WOL#13 | G154: =(C155-D153)*24*3600 -> 1800 | H154: 1200 | L154: 0 | M154: 2022-04-01T18:48:37 | N154: ="0000 WAIT_SEC "&TEXT(G154,"#0") -> 0000 WAIT_SEC 1800
C155: =D154+10/60/24 -> 2022-04-01T19:23:54 | D155: =C155+H155/3600/24 -> 2022-04-01T19:52:16 | F155: SI HV ON | G155: MEA1_HV_ON | H155: =VLOOKUP(G155,List!B:C,2,0) -> 1702 | K155: dcsm-EF_MEA1_HV_ON | L155: 27 | M155: 2022-04-01T19:18:37 | N155: =+"0000 CALL "&K155&" -Run" -> 0000 CALL dcsm-EF_MEA1_HV_ON -Run
C156: =D155 -> 2022-04-01T19:52:16 | D156: 2022-04-01T19:56:46 | G156: HEP_HV_ON | H156: =VLOOKUP(G156,List!B:C,2,0) -> 270 | K156: dcsm-EF_HEPE_HV_ON_OBS_START | L156: 6 | M156: 2022-04-01T19:46:59 | N156: =+"0000 CALL "&K156&" -Run" -> 0000 CALL dcsm-EF_HEPE_HV_ON_OBS_START -Run
C157: 2022-04-01T19:56:46 | D157: 2022-04-01T19:57:28 | F157: TLM mode change (MODE_5) | G157: TLM_MODE_5 | H157: =VLOOKUP(G157,List!B:C,2,0) -> 42 | K157: dcsm-EF_BUS_TLM_MODE_5 | L157: 2 | M157: 2022-04-01T19:51:29 | N157: 0000 CALL dcsm-EF_BUS_TLM_MODE_5 -Run
C158: 2022-04-01T19:57:28 | D158: =C159 -> 2022-04-02T21:35:18 | E158: Observation P | H158: =(D158-C158)*3600*24 -> 92270 | I158: =H158/3600 -> 25.63055556 | L158: 0 | M158: 2022-04-01T19:52:11 | N158: ="0000 WAIT_SEC "&TEXT(H158,"#0") -> 0000 WAIT_SEC 92270
C159: =D159-H159/3600/24 -> 2022-04-02T21:35:18 | D159: =C160 -> 2022-04-02T21:36:00 | F159: TLM mode change (MODE_10) | G159: TLM_MODE_10 | H159: =VLOOKUP(G159,List!B:C,2,0) -> 42 | K159: dcsm-EF_BUS_TLM_MODE_10 | L159: 2 | M159: 2022-04-02T21:30:01 | N159: =+"0000 CALL "&K159&" -Run" -> 0000 CALL dcsm-EF_BUS_TLM_MODE_10 -Run
C160: =D160-H160/3600/24 -> 2022-04-02T21:36:00 | D160: =C161 -> 2022-04-02T21:39:10 | F160: SI HV OFF | G160: HEP_HV_OFF | H160: =VLOOKUP(G160,List!B:C,2,0) -> 190 | K160: dcsm-EF_HEPE_HV_OFF_OBS_OFF | L160: 5 | M160: 2022-04-02T21:30:43 | N160: 0000 CALL dcsm-EF_HEPE_HV_OFF_OBS_OFF -Run
C161: =D161-H161/3600/24 -> 2022-04-02T21:39:10 | D161: =C162 -> 2022-04-02T21:42:12 | G161: MEA1_HV_OFF | H161: =VLOOKUP(G161,List!B:C,2,0) -> 182 | K161: dcsm-EF_MEA1_HV_OFF | L161: 10 | M161: 2022-04-02T21:33:53 | N161: 0000 CALL dcsm-EF_MEA1_HV_OFF -Run
C162: 2022-04-02T21:42:12 | D162: =C162+H162/3600/24 -> 2022-04-02T22:02:12 | E162: WOL#14 | G162: =(C163-D161)*24*3600 -> 1800 | H162: 1200 | L162: 0 | M162: 2022-04-02T21:36:55 | N162: ="0000 WAIT_SEC "&TEXT(G162,"#0") -> 0000 WAIT_SEC 1800
C163: =D162+10/60/24 -> 2022-04-02T22:12:12 | D163: =C163+H163/3600/24 -> 2022-04-02T22:40:34 | F163: SI HV ON | G163: MEA1_HV_ON | H163: =VLOOKUP(G163,List!B:C,2,0) -> 1702 | K163: dcsm-EF_MEA1_HV_ON | L163: 27 | M163: 2022-04-02T22:06:55 | N163: =+"0000 CALL "&K163&" -Run" -> 0000 CALL dcsm-EF_MEA1_HV_ON -Run
C164: =D163 -> 2022-04-02T22:40:34 | D164: 2022-04-02T22:45:04 | G164: HEP_HV_ON | H164: =VLOOKUP(G164,List!B:C,2,0) -> 270 | K164: dcsm-EF_HEPE_HV_ON_OBS_START | L164: 6 | M164: 2022-04-02T22:35:17 | N164: =+"0000 CALL "&K164&" -Run" -> 0000 CALL dcsm-EF_HEPE_HV_ON_OBS_START -Run
C165: 2022-04-02T22:45:04 | D165: 2022-04-02T22:45:46 | F165: TLM mode change (MODE_5) | G165: TLM_MODE_5 | H165: =VLOOKUP(G165,List!B:C,2,0) -> 42 | K165: dcsm-EF_BUS_TLM_MODE_5 | L165: 2 | M165: 2022-04-02T22:39:47 | N165: 0000 CALL dcsm-EF_BUS_TLM_MODE_5 -Run
C166: 2022-04-02T22:45:46 | D166: =C167 -> 2022-04-03T20:47:35 | E166: Observation Q | H166: =(D166-C166)*3600*24 -> 79309 | I166: =H166/3600 -> 22.03027778 | L166: 0 | M166: 2022-04-02T22:40:29 | N166: ="0000 WAIT_SEC "&TEXT(H166,"#0") -> 0000 WAIT_SEC 79309
C167: =D167-H167/3600/24 -> 2022-04-03T20:47:35 | D167: =C168 -> 2022-04-03T20:48:17 | F167: TLM mode change (MODE_10) | G167: TLM_MODE_10 | H167: =VLOOKUP(G167,List!B:C,2,0) -> 42 | K167: dcsm-EF_BUS_TLM_MODE_10 | L167: 2 | M167: 2022-04-03T20:42:18 | N167: =+"0000 CALL "&K167&" -Run" -> 0000 CALL dcsm-EF_BUS_TLM_MODE_10 -Run
C168: =D168-H168/3600/24 -> 2022-04-03T20:48:17 | D168: =C169 -> 2022-04-03T20:51:27 | F168: SI HV OFF | G168: HEP_HV_OFF | H168: =VLOOKUP(G168,List!B:C,2,0) -> 190 | K168: dcsm-EF_HEPE_HV_OFF_OBS_OFF | L168: 5 | M168: 2022-04-03T20:43:00 | N168: 0000 CALL dcsm-EF_HEPE_HV_OFF_OBS_OFF -Run
C169: =D169-H169/3600/24 -> 2022-04-03T20:51:27 | D169: =C170 -> 2022-04-03T20:54:29 | G169: MEA1_HV_OFF | H169: =VLOOKUP(G169,List!B:C,2,0) -> 182 | K169: dcsm-EF_MEA1_HV_OFF | L169: 10 | M169: 2022-04-03T20:46:10 | N169: 0000 CALL dcsm-EF_MEA1_HV_OFF -Run
C170: 2022-04-03T20:54:29 | D170: =C170+H170/3600/24 -> 2022-04-03T21:14:29 | E170: WOL#15 | G170: =(C171-D169)*24*3600 -> 1800 | H170: 1200 | L170: 0 | M170: 2022-04-03T20:49:12 | N170: ="0000 WAIT_SEC "&TEXT(G170,"#0") -> 0000 WAIT_SEC 1800
C171: =D170+10/60/24 -> 2022-04-03T21:24:29 | D171: =C171+H171/3600/24 -> 2022-04-03T21:52:51 | F171: SI HV ON | G171: MEA1_HV_ON | H171: =VLOOKUP(G171,List!B:C,2,0) -> 1702 | K171: dcsm-EF_MEA1_HV_ON | L171: 27 | M171: 2022-04-03T21:19:12 | N171: =+"0000 CALL "&K171&" -Run" -> 0000 CALL dcsm-EF_MEA1_HV_ON -Run
C172: =D171 -> 2022-04-03T21:52:51 | D172: 2022-04-03T21:57:21 | G172: HEP_HV_ON | H172: =VLOOKUP(G172,List!B:C,2,0) -> 270 | K172: dcsm-EF_HEPE_HV_ON_OBS_START | L172: 6 | M172: 2022-04-03T21:47:34 | N172: =+"0000 CALL "&K172&" -Run" -> 0000 CALL dcsm-EF_HEPE_HV_ON_OBS_START -Run
C173: 2022-04-03T21:57:21 | D173: 2022-04-03T21:58:03 | F173: TLM mode change (MODE_5) | G173: TLM_MODE_5 | H173: =VLOOKUP(G173,List!B:C,2,0) -> 42 | K173: dcsm-EF_BUS_TLM_MODE_5 | L173: 2 | M173: 2022-04-03T21:52:04 | N173: 0000 CALL dcsm-EF_BUS_TLM_MODE_5 -Run
C174: 2022-04-03T21:58:03 | D174: =C175 -> 2022-04-04T20:37:15 | E174: Observation R | H174: =(D174-C174)*3600*24 -> 81552 | I174: =H174/3600 -> 22.65333333 | L174: 0 | M174: 2022-04-03T21:52:46 | N174: ="0000 WAIT_SEC "&TEXT(H174,"#0") -> 0000 WAIT_SEC 81552
C175: =D175-H175/3600/24 -> 2022-04-04T20:37:15 | D175: =C176 -> 2022-04-04T20:37:57 | F175: TLM mode change (MODE_10) | G175: TLM_MODE_10 | H175: =VLOOKUP(G175,List!B:C,2,0) -> 42 | K175: dcsm-EF_BUS_TLM_MODE_10 | L175: 2 | M175: 2022-04-04T20:31:58 | N175: =+"0000 CALL "&K175&" -Run" -> 0000 CALL dcsm-EF_BUS_TLM_MODE_10 -Run
C176: =D176-H176/3600/24 -> 2022-04-04T20:37:57 | D176: =C177 -> 2022-04-04T20:41:07 | F176: SI HV OFF | G176: HEP_HV_OFF | H176: =VLOOKUP(G176,List!B:C,2,0) -> 190 | K176: dcsm-EF_HEPE_HV_OFF_OBS_OFF | L176: 5 | M176: 2022-04-04T20:32:40 | N176: 0000 CALL dcsm-EF_HEPE_HV_OFF_OBS_OFF -Run
C177: =D177-H177/3600/24 -> 2022-04-04T20:41:07 | D177: =C178 -> 2022-04-04T20:44:09 | G177: MEA1_HV_OFF | H177: =VLOOKUP(G177,List!B:C,2,0) -> 182 | K177: dcsm-EF_MEA1_HV_OFF | L177: 10 | M177: 2022-04-04T20:35:50 | N177: 0000 CALL dcsm-EF_MEA1_HV_OFF -Run
C178: 2022-04-04T20:44:09 | D178: =C178+H178/3600/24 -> 2022-04-04T21:04:09 | E178: WOL#16 | G178: =(C179-D177)*24*3600 -> 1800 | H178: 1200 | L178: 0 | M178: 2022-04-04T20:38:52 | N178: ="0000 WAIT_SEC "&TEXT(G178,"#0") -> 0000 WAIT_SEC 1800
C179: =D178+10/60/24 -> 2022-04-04T21:14:09 | D179: =C179+H179/3600/24 -> 2022-04-04T21:42:31 | F179: SI HV ON | G179: MEA1_HV_ON | H179: =VLOOKUP(G179,List!B:C,2,0) -> 1702 | K179: dcsm-EF_MEA1_HV_ON | L179: 27 | M179: 2022-04-04T21:08:52 | N179: =+"0000 CALL "&K179&" -Run" -> 0000 CALL dcsm-EF_MEA1_HV_ON -Run
C180: =D179 -> 2022-04-04T21:42:31 | D180: 2022-04-04T21:47:01 | G180: HEP_HV_ON | H180: =VLOOKUP(G180,List!B:C,2,0) -> 270 | K180: dcsm-EF_HEPE_HV_ON_OBS_START | L180: 6 | M180: =C180-317/3600/24 -> 2022-04-04T21:37:14 | N180: =+"0000 CALL "&K180&" -Run" -> 0000 CALL dcsm-EF_HEPE_HV_ON_OBS_START -Run
C181: 2022-04-04T21:47:01 | D181: 2022-04-04T21:47:43 | F181: TLM mode change (MODE_5) | G181: TLM_MODE_5 | H181: =VLOOKUP(G181,List!B:C,2,0) -> 42 | K181: dcsm-EF_BUS_TLM_MODE_5 | L181: 2 | M181: 2022-04-04T21:41:44 | N181: 0000 CALL dcsm-EF_BUS_TLM_MODE_5 -Run
C182: 2022-04-04T21:47:43 | D182: =C183 -> 2022-04-06T01:18:53 | E182: Observation S | H182: =(D182-C182)*3600*24 -> 99070 | I182: =H182/3600 -> 27.51944444 | L182: 0 | M182: 2022-04-04T21:42:26 | N182: ="0000 WAIT_SEC "&TEXT(H182,"#0") -> 0000 WAIT_SEC 99070
C183: =D183-H183/3600/24 -> 2022-04-06T01:18:53 | D183: =C184 -> 2022-04-06T01:19:35 | F183: TLM mode change (MODE_10) | G183: TLM_MODE_10 | H183: =VLOOKUP(G183,List!B:C,2,0) -> 42 | K183: dcsm-EF_BUS_TLM_MODE_10 | L183: 2 | M183: 2022-04-06T01:13:36 | N183: =+"0000 CALL "&K183&" -Run" -> 0000 CALL dcsm-EF_BUS_TLM_MODE_10 -Run
C184: =D184-H184/3600/24 -> 2022-04-06T01:19:35 | D184: =C185 -> 2022-04-06T01:22:45 | F184: SI HV OFF | G184: HEP_HV_OFF | H184: =VLOOKUP(G184,List!B:C,2,0) -> 190 | K184: dcsm-EF_HEPE_HV_OFF_OBS_OFF | L184: 5 | M184: 2022-04-06T01:14:18 | N184: 0000 CALL dcsm-EF_HEPE_HV_OFF_OBS_OFF -Run
C185: =D185-H185/3600/24 -> 2022-04-06T01:22:45 | D185: =C186 -> 2022-04-06T01:25:47 | G185: MEA1_HV_OFF | H185: =VLOOKUP(G185,List!B:C,2,0) -> 182 | K185: dcsm-EF_MEA1_HV_OFF | L185: 10 | M185: 2022-04-06T01:17:28 | N185: 0000 CALL dcsm-EF_MEA1_HV_OFF -Run
C186: 2022-04-06T01:25:47 | D186: =C186+H186/3600/24 -> 2022-04-06T01:45:47 | E186: WOL#17 | G186: =(C187-D185)*24*3600 -> 1800 | H186: 1200 | L186: 0 | M186: 2022-04-06T01:20:30 | N186: ="0000 WAIT_SEC "&TEXT(G186,"#0") -> 0000 WAIT_SEC 1800
C187: =D186+10/60/24 -> 2022-04-06T01:55:47 | D187: =C187+H187/3600/24 -> 2022-04-06T02:24:09 | F187: SI HV ON | G187: MEA1_HV_ON | H187: =VLOOKUP(G187,List!B:C,2,0) -> 1702 | K187: dcsm-EF_MEA1_HV_ON | L187: 27 | M187: 2022-04-06T01:50:30 | N187: =+"0000 CALL "&K187&" -Run" -> 0000 CALL dcsm-EF_MEA1_HV_ON -Run
C188: =D187 -> 2022-04-06T02:24:09 | D188: 2022-04-06T02:28:39 | G188: HEP_HV_ON | H188: =VLOOKUP(G188,List!B:C,2,0) -> 270 | K188: dcsm-EF_HEPE_HV_ON_OBS_START | L188: 6 | M188: 2022-04-06T02:18:52 | N188: =+"0000 CALL "&K188&" -Run" -> 0000 CALL dcsm-EF_HEPE_HV_ON_OBS_START -Run
C189: 2022-04-06T02:28:39 | D189: 2022-04-06T02:29:21 | F189: TLM mode change (MODE_5) | G189: TLM_MODE_5 | H189: =VLOOKUP(G189,List!B:C,2,0) -> 42 | K189: dcsm-EF_BUS_TLM_MODE_5 | L189: 2 | M189: 2022-04-06T02:23:22 | N189: 0000 CALL dcsm-EF_BUS_TLM_MODE_5 -Run
C190: 2022-04-06T02:29:21 | D190: =C191 -> 2022-04-07T01:15:24 | E190: Observation T | H190: =(D190-C190)*3600*24 -> 81963 | I190: =H190/3600 -> 22.7675 | L190: 0 | M190: 2022-04-06T02:24:04 | N190: ="0000 WAIT_SEC "&TEXT(H190,"#0") -> 0000 WAIT_SEC 81963
C191: =D191-H191/3600/24 -> 2022-04-07T01:15:24 | D191: =C192 -> 2022-04-07T01:16:06 | F191: TLM mode change (MODE_10) | G191: TLM_MODE_10 | H191: =VLOOKUP(G191,List!B:C,2,0) -> 42 | K191: dcsm-EF_BUS_TLM_MODE_10 | L191: 2 | M191: 2022-04-07T01:10:07 | N191: =+"0000 CALL "&K191&" -Run" -> 0000 CALL dcsm-EF_BUS_TLM_MODE_10 -Run
C192: =D192-H192/3600/24 -> 2022-04-07T01:16:06 | D192: =C193 -> 2022-04-07T01:19:16 | F192: SI HV OFF | G192: HEP_HV_OFF | H192: =VLOOKUP(G192,List!B:C,2,0) -> 190 | K192: dcsm-EF_HEPE_HV_OFF_OBS_OFF | L192: 5 | M192: 2022-04-07T01:10:49 | N192: 0000 CALL dcsm-EF_HEPE_HV_OFF_OBS_OFF -Run
C193: =D193-H193/3600/24 -> 2022-04-07T01:19:16 | D193: =C194 -> 2022-04-07T01:22:18 | G193: MEA1_HV_OFF | H193: =VLOOKUP(G193,List!B:C,2,0) -> 182 | K193: dcsm-EF_MEA1_HV_OFF | L193: 10 | M193: 2022-04-07T01:13:59 | N193: 0000 CALL dcsm-EF_MEA1_HV_OFF -Run
C194: 2022-04-07T01:22:18 | D194: =C194+H194/3600/24 -> 2022-04-07T01:42:18 | E194: WOL#18 | G194: =(C195-D193)*24*3600 -> 1800 | H194: 1200 | L194: 0 | M194: 2022-04-07T01:17:01 | N194: ="0000 WAIT_SEC "&TEXT(G194,"#0") -> 0000 WAIT_SEC 1800
C195: =D194+10/60/24 -> 2022-04-07T01:52:18 | D195: =C195+H195/3600/24 -> 2022-04-07T02:20:40 | F195: SI HV ON | G195: MEA1_HV_ON | H195: =VLOOKUP(G195,List!B:C,2,0) -> 1702 | K195: dcsm-EF_MEA1_HV_ON | L195: 27 | M195: 2022-04-07T01:47:01 | N195: =+"0000 CALL "&K195&" -Run" -> 0000 CALL dcsm-EF_MEA1_HV_ON -Run
C196: =D195 -> 2022-04-07T02:20:40 | D196: 2022-04-07T02:25:10 | G196: HEP_HV_ON | H196: =VLOOKUP(G196,List!B:C,2,0) -> 270 | K196: dcsm-EF_HEPE_HV_ON_OBS_START | L196: 6 | M196: 2022-04-07T02:15:23 | N196: =+"0000 CALL "&K196&" -Run" -> 0000 CALL dcsm-EF_HEPE_HV_ON_OBS_START -Run
C197: 2022-04-07T02:25:10 | D197: 2022-04-07T02:25:52 | F197: TLM mode change (MODE_5) | G197: TLM_MODE_5 | H197: =VLOOKUP(G197,List!B:C,2,0) -> 42 | K197: dcsm-EF_BUS_TLM_MODE_5 | L197: 2 | M197: 2022-04-07T02:19:53 | N197: 0000 CALL dcsm-EF_BUS_TLM_MODE_5 -Run
C198: 2022-04-07T02:25:52 | D198: =C199 -> 2022-04-07T23:32:44 | E198: Observation U | H198: =(D198-C198)*3600*24 -> 76012 | I198: =H198/3600 -> 21.11444444 | L198: 0 | M198: 2022-04-07T02:20:35 | N198: ="0000 WAIT_SEC "&TEXT(H198,"#0") -> 0000 WAIT_SEC 76012
C199: =D199-H199/3600/24 -> 2022-04-07T23:32:44 | D199: =C200 -> 2022-04-07T23:33:26 | F199: TLM mode change (MODE_10) | G199: TLM_MODE_10 | H199: =VLOOKUP(G199,List!B:C,2,0) -> 42 | K199: dcsm-EF_BUS_TLM_MODE_10 | L199: 2 | M199: 2022-04-07T23:27:27 | N199: =+"0000 CALL "&K199&" -Run" -> 0000 CALL dcsm-EF_BUS_TLM_MODE_10 -Run
C200: =D200-H200/3600/24 -> 2022-04-07T23:33:26 | D200: =C201 -> 2022-04-07T23:36:36 | F200: SI HV OFF | G200: HEP_HV_OFF | H200: =VLOOKUP(G200,List!B:C,2,0) -> 190 | K200: dcsm-EF_HEPE_HV_OFF_OBS_OFF | L200: 5 | M200: 2022-04-07T23:28:09 | N200: 0000 CALL dcsm-EF_HEPE_HV_OFF_OBS_OFF -Run
C201: =D201-H201/3600/24 -> 2022-04-07T23:36:36 | D201: =C202 -> 2022-04-07T23:39:42 | G201: MEA1_HV_SCAN_OFF | H201: =VLOOKUP(G201,List!B:C,2,0) -> 186 | K201: dcsm-EF_MEA1_HV_SCAN_OFF | L201: 12 | M201: 2022-04-07T23:31:19 | N201: 0000 CALL dcsm-EF_MEA1_HV_SCAN_OFF -Run
... 7 more rows
